Workbook

Sheet Profit & Loss
A1: ='Data Sheet'!B1 -> AJANTA PHARMA LTD | H1: =UPDATE ->  | M1: SCREENER.IN
A3: Narration | B3: ='Data Sheet'!B16 -> 2007-03-31 | C3: ='Data Sheet'!C16 -> 2008-03-31 | D3: ='Data Sheet'!D16 -> 2009-03-31 | E3: ='Data Sheet'!E16 -> 2010-03-31 | F3: ='Data Sheet'!F16 -> 2011-03-31 | G3: ='Data Sheet'!G16 -> 2012-03-31 | H3: ='Data Sheet'!H16 -> 2013-03-31 | I3: ='Data Sheet'!I16 -> 2014-03-31 | J3: ='Data Sheet'!J16 -> 2015-03-31 | K3: ='Data Sheet'!K16 -> 2016-03-31 | L3: Trailing | M3: Best Case | N3: Worst Case
A4: Sales | B4: ='Data Sheet'!B17 -> 258.01 | C4: ='Data Sheet'!C17 -> 309.37 | D4: ='Data Sheet'!D17 -> 349.34 | E4: ='Data Sheet'!E17 -> 409.14 | F4: ='Data Sheet'!F17 -> 504.87 | G4: ='Data Sheet'!G17 -> 677.4 | H4: ='Data Sheet'!H17 -> 930.84 | I4: ='Data Sheet'!I17 -> 1208.34 | J4: ='Data Sheet'!J17 -> 1473.56 | K4: ='Data Sheet'!K17 -> 1727.53 | L4: =SUM(Quarters!H4:K4) -> 1890.23 | M4: =$K4+M23*K4 -> 2122.963129 | N4: =$K4+N23*L4 -> 2053.313621
A5: Expenses | B5: =SUM('Data Sheet'!B18,'Data Sheet'!B20:B24, -1*'Data Sheet'!B19) -> 218.33 | C5: =SUM('Data Sheet'!C18,'Data Sheet'!C20:C24, -1*'Data Sheet'!C19) -> 258.02 | D5: =SUM('Data Sheet'!D18,'Data Sheet'!D20:D24, -1*'Data Sheet'!D19) -> 284.28 | E5: =SUM('Data Sheet'!E18,'Data Sheet'!E20:E24, -1*'Data Sheet'!E19) -> 330.58 | F5: =SUM('Data Sheet'!F18,'Data Sheet'!F20:F24, -1*'Data Sheet'!F19) -> 416.17 | G5: =SUM('Data Sheet'!G18,'Data Sheet'!G20:G24, -1*'Data Sheet'!G19) -> 545.37 | H5: =SUM('Data Sheet'!H18,'Data Sheet'!H20:H24, -1*'Data Sheet'!H19) -> 706.35 | I5: =SUM('Data Sheet'!I18,'Data Sheet'!I20:I24, -1*'Data Sheet'!I19) -> 839.59 | J5: =SUM('Data Sheet'!J18,'Data Sheet'!J20:J24, -1*'Data Sheet'!J19) -> 976.79 | K5: =SUM('Data Sheet'!K18,'Data Sheet'!K20:K24, -1*'Data Sheet'!K19) -> 1146.81 | L5: =SUM(Quarters!H5:K5) -> 1246.36 | M5: =M4-M6 -> 1399.817126 | N5: 1497.076602
A6: Operating Profit | B6: =B4-B5 -> 39.68 | C6: =C4-C5 -> 51.35 | D6: 65.06 | E6: 78.56 | F6: 88.7 | G6: 132.03 | H6: 224.49 | I6: 368.75 | J6: 496.77 | K6: 580.72 | L6: =SUM(Quarters!H6:K6) -> 643.87 | M6: =M4*M24 -> 723.1460033 | N6: =N4*N24 -> 556.2370195
A7: Other Income | B7: ='Data Sheet'!B25 -> 0.82 | C7: ='Data Sheet'!C25 -> 1.54 | D7: ='Data Sheet'!D25 -> 2.5 | E7: ='Data Sheet'!E25 -> 1.08 | F7: ='Data Sheet'!F25 -> 10.46 | G7: ='Data Sheet'!G25 -> 6.22 | H7: ='Data Sheet'!H25 -> 5.6 | I7: ='Data Sheet'!I25 -> 13.71 | J7: ='Data Sheet'!J25 -> 16.8 | K7: ='Data Sheet'!K25 -> 16.63 | L7: =SUM(Quarters!H7:K7) -> 18.7 | M7: 0 | N7: 0
A8: Depreciation | B8: ='Data Sheet'!B26 -> 8.74 | C8: ='Data Sheet'!C26 -> 7.87 | D8: ='Data Sheet'!D26 -> 14.2 | E8: ='Data Sheet'!E26 -> 20.73 | F8: ='Data Sheet'!F26 -> 24.75 | G8: ='Data Sheet'!G26 -> 31.87 | H8: ='Data Sheet'!H26 -> 34.17 | I8: ='Data Sheet'!I26 -> 43.88 | J8: ='Data Sheet'!J26 -> 51.64 | K8: ='Data Sheet'!K26 -> 45.06 | L8: =SUM(Quarters!H8:K8) -> 50.77 | M8: =+$L8 -> 50.77 | N8: =+$L8 -> 50.77
A9: Interest | B9: ='Data Sheet'!B27 -> 12.38 | C9: ='Data Sheet'!C27 -> 16.14 | D9: ='Data Sheet'!D27 -> 23.55 | E9: ='Data Sheet'!E27 -> 20.15 | F9: ='Data Sheet'!F27 -> 18.02 | G9: ='Data Sheet'!G27 -> 15.43 | H9: ='Data Sheet'!H27 -> 19.13 | I9: ='Data Sheet'!I27 -> 8.73 | J9: ='Data Sheet'!J27 -> 5.92 | K9: ='Data Sheet'!K27 -> 4.89 | L9: =SUM(Quarters!H9:K9) -> 4.43 | M9: =+$L9 -> 4.43 | N9: =+$L9 -> 4.43
A10: Profit before tax | B10: ='Data Sheet'!B28 -> 19.38 | C10: ='Data Sheet'!C28 -> 28.88 | D10: ='Data Sheet'!D28 -> 29.81 | E10: ='Data Sheet'!E28 -> 38.76 | F10: ='Data Sheet'!F28 -> 56.39 | G10: ='Data Sheet'!G28 -> 90.95 | H10: ='Data Sheet'!H28 -> 176.79 | I10: ='Data Sheet'!I28 -> 329.85 | J10: ='Data Sheet'!J28 -> 456.01 | K10: ='Data Sheet'!K28 -> 547.4 | L10: =SUM(Quarters!H10:K10) -> 607.37 | M10: =M6+M7-SUM(M8:M9) -> 667.9460033 | N10: =N6+N7-SUM(N8:N9) -> 501.0370195
A11: Tax | B11: ='Data Sheet'!B29 -> 4.67 | C11: ='Data Sheet'!C29 -> 6.85 | D11: ='Data Sheet'!D29 -> 4.38 | E11: ='Data Sheet'!E29 -> 4.76 | F11: ='Data Sheet'!F29 -> 5.68 | G11: ='Data Sheet'!G29 -> 13.69 | H11: ='Data Sheet'!H29 -> 64.68 | I11: ='Data Sheet'!I29 -> 95.97 | J11: ='Data Sheet'!J29 -> 146.15 | K11: ='Data Sheet'!K29 -> 145.99 | L11: =SUM(Quarters!H11:K11) -> 138.35 | M11: =IF($L10>0,$L11/$L10,0) -> 0.2277853697 | N11: =IF($L10>0,$L11/$L10,0) -> 0.2277853697
A12: Net profit | B12: ='Data Sheet'!B30 -> 14.66 | C12: ='Data Sheet'!C30 -> 21.88 | D12: ='Data Sheet'!D30 -> 25.43 | E12: ='Data Sheet'!E30 -> 34 | F12: ='Data Sheet'!F30 -> 50.71 | G12: ='Data Sheet'!G30 -> 77.26 | H12: ='Data Sheet'!H30 -> 112.11 | I12: ='Data Sheet'!I30 -> 233.88 | J12: ='Data Sheet'!J30 -> 309.86 | K12: ='Data Sheet'!K30 -> 401.41 | L12: =SUM(Quarters!H12:K12) -> 469.02 | M12: =M10-M11*M10 -> 515.797676 | N12: =N10-N11*N10 -> 386.9081167
A13: EPS | B13: =IF('Data Sheet'!B93>0,B12/'Data Sheet'!B93,0) -> 2.064035795 | C13: =IF('Data Sheet'!C93>0,C12/'Data Sheet'!C93,0) -> 3.080566385 | D13: =IF('Data Sheet'!D93>0,D12/'Data Sheet'!D93,0) -> 3.580384057 | E13: =IF('Data Sheet'!E93>0,E12/'Data Sheet'!E93,0) -> 4.786986156 | F13: =IF('Data Sheet'!F93>0,F12/'Data Sheet'!F93,0) -> 7.139649058 | G13: =IF('Data Sheet'!G93>0,G12/'Data Sheet'!G93,0) -> 10.87772207 | H13: =IF('Data Sheet'!H93>0,H12/'Data Sheet'!H93,0) -> 15.78438288 | I13: =IF('Data Sheet'!I93>0,I12/'Data Sheet'!I93,0) -> 26.42711864 | J13: =IF('Data Sheet'!J93>0,J12/'Data Sheet'!J93,0) -> 34.92954571 | K13: =IF('Data Sheet'!K93>0,K12/'Data Sheet'!K93,0) -> 45.22025172 | L13: =IF('Data Sheet'!$B6>0,'Profit & Loss'!L12/'Data Sheet'!$B6,0) -> 53.29468946 | M13: =IF('Data Sheet'!$B6>0,'Profit & Loss'!M12/'Data Sheet'!$B6,0) -> 58.61003148 | N13: =IF('Data Sheet'!$B6>0,'Profit & Loss'!N12/'Data Sheet'!$B6,0) -> 43.96432547
A14: Price to earning | B14: =IF(B15>0,B15/B13,"") -> 4.75282455 | C14: =IF(C15>0,C15/C13,"") -> 3.746064378 | D14: 2.175744243 | E14: 5.471083297 | F14: 4.225697896 | G14: 6.523424623 | H14: 12.06952476 | I14: 14.98839148 | J14: 38.54788182 | K14: 32.49893453 | L14: =IF(L13>0,L15/L13,0) -> 33.66658138 | M14: =M25 -> 33.66658138 | N14: =N25 -> 14.42419572
A15: Price | B15: ='Data Sheet'!B90 -> 9.81 | C15: ='Data Sheet'!C90 -> 11.54 | D15: ='Data Sheet'!D90 -> 7.79 | E15: ='Data Sheet'!E90 -> 26.19 | F15: ='Data Sheet'!F90 -> 30.17 | G15: ='Data Sheet'!G90 -> 70.96 | H15: ='Data Sheet'!H90 -> 190.51 | I15: ='Data Sheet'!I90 -> 396.1 | J15: ='Data Sheet'!J90 -> 1346.46 | K15: ='Data Sheet'!K90 -> 1469.61 | L15: ='Data Sheet'!B8 -> 1794.25 | M15: =M13*M14 -> 1973.199395 | N15: =N13*N14 -> 634.1500354
A17: RATIOS:
A18: Dividend Payout | B18: =IF('Data Sheet'!B30>0, 'Data Sheet'!B31/'Data Sheet'!B30, 0) -> 0.1596180082 | C18: =IF('Data Sheet'!C30>0, 'Data Sheet'!C31/'Data Sheet'!C30, 0) -> 0.1339122486 | D18: =IF('Data Sheet'!D30>0, 'Data Sheet'!D31/'Data Sheet'!D30, 0) -> 0.1152182462 | E18: =IF('Data Sheet'!E30>0, 'Data Sheet'!E31/'Data Sheet'!E30, 0) -> 0.1202941176 | F18: =IF('Data Sheet'!F30>0, 'Data Sheet'!F31/'Data Sheet'!F30, 0) -> 0.1153618616 | G18: =IF('Data Sheet'!G30>0, 'Data Sheet'!G31/'Data Sheet'!G30, 0) -> 0.113642247 | H18: =IF('Data Sheet'!H30>0, 'Data Sheet'!H31/'Data Sheet'!H30, 0) -> 0.1306752297 | I18: =IF('Data Sheet'!I30>0, 'Data Sheet'!I31/'Data Sheet'!I30, 0) -> 0.1504190183 | J18: =IF('Data Sheet'!J30>0, 'Data Sheet'!J31/'Data Sheet'!J30, 0) -> 0.1704640806 | K18: =IF('Data Sheet'!K30>0, 'Data Sheet'!K31/'Data Sheet'!K30, 0) -> 0.1753817792
A19: OPM | B19: =IF(B6>0,B6/B4,0) -> 0.1537924887 | C19: =IF(C6>0,C6/C4,0) -> 0.1659824805 | D19: 0.1862369039 | E19: 0.1920125141 | F19: 0.1756887912 | G19: 0.1949069973 | H19: 0.2411692665 | I19: 0.3051707301 | J19: 0.3371223432 | K19: 0.3361562462 | L19: 0.3406305053
G22: TRENDS: | H22: 10 YEARS | I22: 7 YEARS | J22: 5 YEARS | K22: 3 YEARS | L22: RECENT | M22: BEST | N22: WORST
G23: Sales Growth | H23: =IF(B4=0,"",POWER($K4/B4,1/9)-1) -> 0.2352485135 | I23: =IF(D4=0,"",POWER($K4/D4,1/7)-1) -> 0.2565164631 | J23: =IF(F4=0,"",POWER($K4/F4,1/5)-1) -> 0.2789371613 | K23: =IF(H4=0,"",POWER($K4/H4, 1/3)-1) -> 0.2289008751 | L23: =IF(ISERROR(MAX(IF(J4=0,"",(K4-J4)/J4),IF(K4=0,"",(L4-K4)/K4))),"",MAX(IF(J4=0,"",(K4-J4)/J4),IF(K4=0,"",(L4-K4)/K4))) -> 0.1723513125 | M23: =MAX(K23:L23) -> 0.2289008751 | N23: =MIN(H23:L23) -> 0.1723513125
G24: OPM | H24: =IF(SUM(B4:$K$4)=0,"",SUMPRODUCT(B19:$K$19,B4:$K$4)/SUM(B4:$K$4)) -> 0.2708972529 | I24: =IF(SUM(E4:$K$4)=0,"",SUMPRODUCT(E19:$K$19,E4:$K$4)/SUM(E4:$K$4)) -> 0.284205272 | J24: =IF(SUM(G4:$K$4)=0,"",SUMPRODUCT(G19:$K$19,G4:$K$4)/SUM(G4:$K$4)) -> 0.2995777435 | K24: =IF(SUM(I4:$K$4)=0, "", SUMPRODUCT(I19:$K$19,I4:$K$4)/SUM(I4:$K$4)) -> 0.3279879712 | L24: =L19 -> 0.3406305053 | M24: =MAX(K24:L24) -> 0.3406305053 | N24: =MIN(H24:L24) -> 0.2708972529
G25: Price to Earning | H25: =IF(ISERROR(AVERAGEIF(B14:$L14,">0")),"",AVERAGEIF(B14:$L14,">0")) -> 14.42419572 | I25: =IF(ISERROR(AVERAGEIF(E14:$L14,">0")),"",AVERAGEIF(E14:$L14,">0")) -> 18.49893997 | J25: =IF(ISERROR(AVERAGEIF(G14:$L14,">0")),"",AVERAGEIF(G14:$L14,">0")) -> 23.0491231 | K25: =IF(ISERROR(AVERAGEIF(I14:$L14,">0")),"",AVERAGEIF(I14:$L14,">0")) -> 29.9254473 | L25: =L14 -> 33.66658138 | M25: =MAX(K25:L25) -> 33.66658138 | N25: =MIN(H25:L25) -> 14.42419572

Sheet Quarters
A1: ='Profit & Loss'!A1 -> AJANTA PHARMA LTD | E1: =UPDATE ->  | J1: SCREENER.IN
A3: Narration | B3: ='Data Sheet'!B41 -> 2014-06-30 | C3: ='Data Sheet'!C41 -> 2014-09-30 | D3: ='Data Sheet'!D41 -> 2014-12-31 | E3: ='Data Sheet'!E41 -> 2015-03-31 | F3: ='Data Sheet'!F41 -> 2015-06-30 | G3: ='Data Sheet'!G41 -> 2015-09-30 | H3: ='Data Sheet'!H41 -> 2015-12-31 | I3: ='Data Sheet'!I41 -> 2016-03-31 | J3: ='Data Sheet'!J41 -> 2016-06-30 | K3: ='Data Sheet'!K41 -> 2016-09-30
A4: Sales | B4: ='Data Sheet'!B42 -> 321.74 | C4: ='Data Sheet'!C42 -> 371.87 | D4: ='Data Sheet'!D42 -> 407.85 | E4: ='Data Sheet'!E42 -> 372.09 | F4: ='Data Sheet'!F42 -> 391.35 | G4: ='Data Sheet'!G42 -> 441.7 | H4: ='Data Sheet'!H42 -> 472.78 | I4: ='Data Sheet'!I42 -> 425.73 | J4: ='Data Sheet'!J42 -> 475.9 | K4: ='Data Sheet'!K42 -> 515.82
A5: Expenses | B5: ='Data Sheet'!B43 -> 224.82 | C5: ='Data Sheet'!C43 -> 243.05 | D5: ='Data Sheet'!D43 -> 263.09 | E5: ='Data Sheet'!E43 -> 247.46 | F5: ='Data Sheet'!F43 -> 268.83 | G5: ='Data Sheet'!G43 -> 287.78 | H5: ='Data Sheet'!H43 -> 309.3 | I5: ='Data Sheet'!I43 -> 285.13 | J5: ='Data Sheet'!J43 -> 309.33 | K5: ='Data Sheet'!K43 -> 342.6
A6: Operating Profit | B6: ='Data Sheet'!B50 -> 96.92 | C6: ='Data Sheet'!C50 -> 128.82 | D6: ='Data Sheet'!D50 -> 144.76 | E6: ='Data Sheet'!E50 -> 124.63 | F6: ='Data Sheet'!F50 -> 122.52 | G6: ='Data Sheet'!G50 -> 153.92 | H6: ='Data Sheet'!H50 -> 163.48 | I6: ='Data Sheet'!I50 -> 140.6 | J6: ='Data Sheet'!J50 -> 166.57 | K6: ='Data Sheet'!K50 -> 173.22
A7: Other Income | B7: ='Data Sheet'!B44 -> 4.51 | C7: ='Data Sheet'!C44 -> 4.41 | D7: ='Data Sheet'!D44 -> 4.54 | E7: ='Data Sheet'!E44 -> 4.98 | F7: ='Data Sheet'!F44 -> 7.96 | G7: ='Data Sheet'!G44 -> 6.16 | H7: ='Data Sheet'!H44 -> 1.6 | I7: ='Data Sheet'!I44 -> 4.98 | J7: ='Data Sheet'!J44 -> 5.46 | K7: ='Data Sheet'!K44 -> 6.66
A8: Depreciation | B8: ='Data Sheet'!B45 -> 12.55 | C8: ='Data Sheet'!C45 -> 12.72 | D8: ='Data Sheet'!D45 -> 13.14 | E8: ='Data Sheet'!E45 -> 13.23 | F8: ='Data Sheet'!F45 -> 10.31 | G8: ='Data Sheet'!G45 -> 10.97 | H8: ='Data Sheet'!H45 -> 11.73 | I8: ='Data Sheet'!I45 -> 12.05 | J8: ='Data Sheet'!J45 -> 13 | K8: ='Data Sheet'!K45 -> 13.99
A9: Interest | B9: ='Data Sheet'!B46 -> 1.57 | C9: ='Data Sheet'!C46 -> 1.48 | D9: ='Data Sheet'!D46 -> 1.38 | E9: ='Data Sheet'!E46 -> 1.49 | F9: ='Data Sheet'!F46 -> 1.17 | G9: ='Data Sheet'!G46 -> 1.07 | H9: ='Data Sheet'!H46 -> 1.53 | I9: ='Data Sheet'!I46 -> 1.12 | J9: ='Data Sheet'!J46 -> 1.01 | K9: ='Data Sheet'!K46 -> 0.77
A10: Profit before tax | B10: ='Data Sheet'!B47 -> 87.31 | C10: ='Data Sheet'!C47 -> 119.03 | D10: ='Data Sheet'!D47 -> 134.78 | E10: ='Data Sheet'!E47 -> 114.89 | F10: ='Data Sheet'!F47 -> 119 | G10: ='Data Sheet'!G47 -> 148.04 | H10: ='Data Sheet'!H47 -> 151.82 | I10: ='Data Sheet'!I47 -> 132.41 | J10: ='Data Sheet'!J47 -> 158.02 | K10: ='Data Sheet'!K47 -> 165.12
A11: Tax | B11: ='Data Sheet'!B48 -> 27.65 | C11: ='Data Sheet'!C48 -> 36.03 | D11: ='Data Sheet'!D48 -> 41.72 | E11: ='Data Sheet'!E48 -> 40.75 | F11: ='Data Sheet'!F48 -> 32.99 | G11: ='Data Sheet'!G48 -> 44.6 | H11: ='Data Sheet'!H48 -> 40.52 | I11: ='Data Sheet'!I48 -> 24.9 | J11: ='Data Sheet'!J48 -> 38.47 | K11: ='Data Sheet'!K48 -> 34.46
A12: Net profit | B12: ='Data Sheet'!B49 -> 59.66 | C12: ='Data Sheet'!C49 -> 83 | D12: ='Data Sheet'!D49 -> 93.06 | E12: ='Data Sheet'!E49 -> 74.14 | F12: ='Data Sheet'!F49 -> 86.01 | G12: ='Data Sheet'!G49 -> 103.44 | H12: ='Data Sheet'!H49 -> 111.3 | I12: ='Data Sheet'!I49 -> 107.51 | J12: ='Data Sheet'!J49 -> 119.55 | K12: ='Data Sheet'!K49 -> 130.66
A14: OPM | B14: =IF(B4>0,B6/B4,"") -> 0.3012370237 | C14: =IF(C4>0,C6/C4,"") -> 0.3464113803 | D14: 0.3549344122 | E14: 0.3349458464 | F14: 0.3130701418 | G14: 0.3484718134 | H14: 0.3457845087 | I14: 0.3302562657 | J14: 0.3500105064 | K14: 0.3358148191

Sheet Balance Sheet
A1: ='Profit & Loss'!A1 -> AJANTA PHARMA LTD | E1: =UPDATE ->  | J1: SCREENER.IN
A3: Narration | B3: ='Data Sheet'!B56 -> 2007-03-31 | C3: ='Data Sheet'!C56 -> 2008-03-31 | D3: ='Data Sheet'!D56 -> 2009-03-31 | E3: ='Data Sheet'!E56 -> 2010-03-31 | F3: ='Data Sheet'!F56 -> 2011-03-31 | G3: ='Data Sheet'!G56 -> 2012-03-31 | H3: ='Data Sheet'!H56 -> 2013-03-31 | I3: ='Data Sheet'!I56 -> 2014-03-31 | J3: ='Data Sheet'!J56 -> 2015-03-31 | K3: ='Data Sheet'!K56 -> 2016-03-31
A4: Equity Share Capital | B4: ='Data Sheet'!B57 -> 11.8 | C4: ='Data Sheet'!C57 -> 11.8 | D4: ='Data Sheet'!D57 -> 11.8 | E4: ='Data Sheet'!E57 -> 11.8 | F4: ='Data Sheet'!F57 -> 11.8 | G4: ='Data Sheet'!G57 -> 11.8 | H4: ='Data Sheet'!H57 -> 11.8 | I4: ='Data Sheet'!I57 -> 17.67 | J4: ='Data Sheet'!J57 -> 17.68 | K4: ='Data Sheet'!K57 -> 17.69
A5: Reserves | B5: ='Data Sheet'!B58 -> 103.59 | C5: ='Data Sheet'!C58 -> 123.06 | D5: ='Data Sheet'!D58 -> 145.31 | E5: ='Data Sheet'!E58 -> 173.13 | F5: ='Data Sheet'!F58 -> 217.03 | G5: ='Data Sheet'!G58 -> 286.23 | H5: ='Data Sheet'!H58 -> 381.63 | I5: ='Data Sheet'!I58 -> 575.64 | J5: ='Data Sheet'!J58 -> 823.41 | K5: ='Data Sheet'!K58 -> 1154.37
A6: Borrowings | B6: ='Data Sheet'!B59 -> 116.37 | C6: ='Data Sheet'!C59 -> 173.54 | D6: ='Data Sheet'!D59 -> 250.22 | E6: ='Data Sheet'!E59 -> 227.96 | F6: ='Data Sheet'!F59 -> 190.63 | G6: ='Data Sheet'!G59 -> 199.64 | H6: ='Data Sheet'!H59 -> 124.84 | I6: ='Data Sheet'!I59 -> 130.49 | J6: ='Data Sheet'!J59 -> 72.38 | K6: ='Data Sheet'!K59 -> 92.93
A7: Other Liabilities | B7: ='Data Sheet'!B60 -> 36.52 | C7: ='Data Sheet'!C60 -> 59.06 | D7: ='Data Sheet'!D60 -> 64.39 | E7: ='Data Sheet'!E60 -> 89.26 | F7: ='Data Sheet'!F60 -> 102.7 | G7: ='Data Sheet'!G60 -> 152.84 | H7: ='Data Sheet'!H60 -> 200.62 | I7: ='Data Sheet'!I60 -> 225.67 | J7: ='Data Sheet'!J60 -> 234.56 | K7: ='Data Sheet'!K60 -> 222.39
A8: Total | B8: ='Data Sheet'!B61 -> 268.28 | C8: ='Data Sheet'!C61 -> 367.46 | D8: ='Data Sheet'!D61 -> 471.72 | E8: ='Data Sheet'!E61 -> 502.15 | F8: ='Data Sheet'!F61 -> 522.16 | G8: ='Data Sheet'!G61 -> 650.51 | H8: ='Data Sheet'!H61 -> 718.89 | I8: ='Data Sheet'!I61 -> 949.47 | J8: ='Data Sheet'!J61 -> 1148.03 | K8: ='Data Sheet'!K61 -> 1487.38
A10: Net Block | B10: ='Data Sheet'!B62 -> 62 | C10: ='Data Sheet'!C62 -> 101.8 | D10: ='Data Sheet'!D62 -> 138.27 | E10: ='Data Sheet'!E62 -> 168.46 | F10: ='Data Sheet'!F62 -> 214.03 | G10: ='Data Sheet'!G62 -> 246.13 | H10: ='Data Sheet'!H62 -> 272.56 | I10: ='Data Sheet'!I62 -> 279.39 | J10: ='Data Sheet'!J62 -> 288.09 | K10: ='Data Sheet'!K62 -> 451.58
A11: Capital Work in Progress | B11: ='Data Sheet'!B63 -> 13.44 | C11: ='Data Sheet'!C63 -> 23.88 | D11: ='Data Sheet'!D63 -> 55.17 | E11: ='Data Sheet'!E63 -> 46.99 | F11: ='Data Sheet'!F63 -> 17.22 | G11: ='Data Sheet'!G63 -> 2.51 | H11: ='Data Sheet'!H63 -> 12.49 | I11: ='Data Sheet'!I63 -> 93.55 | J11: ='Data Sheet'!J63 -> 170.2 | K11: ='Data Sheet'!K63 -> 239.8
A12: Investments | B12: ='Data Sheet'!B64 -> 8.47 | C12: ='Data Sheet'!C64 -> 8.47 | D12: ='Data Sheet'!D64 -> 8.47 | E12: ='Data Sheet'!E64 -> 8.47 | F12: ='Data Sheet'!F64 -> 8.46 | G12: ='Data Sheet'!G64 -> 8.47 | H12: ='Data Sheet'!H64 -> 8.46 | I12: ='Data Sheet'!I64 -> 63.46 | J12: ='Data Sheet'!J64 -> 59.5 | K12: ='Data Sheet'!K64 -> 66.39
A13: Other Assets | B13: ='Data Sheet'!B65 -> 184.37 | C13: ='Data Sheet'!C65 -> 233.31 | D13: ='Data Sheet'!D65 -> 269.81 | E13: ='Data Sheet'!E65 -> 278.23 | F13: ='Data Sheet'!F65 -> 282.45 | G13: ='Data Sheet'!G65 -> 393.4 | H13: ='Data Sheet'!H65 -> 425.38 | I13: ='Data Sheet'!I65 -> 513.07 | J13: ='Data Sheet'!J65 -> 630.24 | K13: ='Data Sheet'!K65 -> 729.61
A14: Total | B14: ='Data Sheet'!B66 -> 268.28 | C14: ='Data Sheet'!C66 -> 367.46 | D14: ='Data Sheet'!D66 -> 471.72 | E14: ='Data Sheet'!E66 -> 502.15 | F14: ='Data Sheet'!F66 -> 522.16 | G14: ='Data Sheet'!G66 -> 650.51 | H14: ='Data Sheet'!H66 -> 718.89 | I14: ='Data Sheet'!I66 -> 949.47 | J14: ='Data Sheet'!J66 -> 1148.03 | K14: ='Data Sheet'!K66 -> 1487.38
A16: Working Capital | B16: =B13-B7 -> 147.85 | C16: =C13-C7 -> 174.25 | D16: 205.42 | E16: 188.97 | F16: 179.75 | G16: 240.56 | H16: 224.76 | I16: 287.4 | J16: 395.68 | K16: 507.22
A17: Debtors | B17: ='Data Sheet'!B67 -> 68.44 | C17: ='Data Sheet'!C67 -> 86.83 | D17: ='Data Sheet'!D67 -> 100.12 | E17: ='Data Sheet'!E67 -> 96.73 | F17: ='Data Sheet'!F67 -> 103.98 | G17: ='Data Sheet'!G67 -> 141 | H17: ='Data Sheet'!H67 -> 150.47 | I17: ='Data Sheet'!I67 -> 202.22 | J17: ='Data Sheet'!J67 -> 258.76 | K17: ='Data Sheet'!K67 -> 372.35
A18: Inventory | B18: ='Data Sheet'!B68 -> 70.84 | C18: ='Data Sheet'!C68 -> 92.77 | D18: ='Data Sheet'!D68 -> 103.89 | E18: ='Data Sheet'!E68 -> 119.62 | F18: ='Data Sheet'!F68 -> 113.12 | G18: ='Data Sheet'!G68 -> 167.8 | H18: ='Data Sheet'!H68 -> 147.6 | I18: ='Data Sheet'!I68 -> 155.4 | J18: ='Data Sheet'!J68 -> 159.03 | K18: ='Data Sheet'!K68 -> 204.58
A20: Inventory Turnover | B20: =IF('Balance Sheet'!B18>0,'Profit & Loss'!B4/'Balance Sheet'!B18,0) -> 3.642151327 | C20: =IF('Balance Sheet'!C18>0,'Profit & Loss'!C4/'Balance Sheet'!C18,0) -> 3.334806511 | D20: =IF('Balance Sheet'!D18>0,'Profit & Loss'!D4/'Balance Sheet'!D18,0) -> 3.362595052 | E20: =IF('Balance Sheet'!E18>0,'Profit & Loss'!E4/'Balance Sheet'!E18,0) -> 3.420331048 | F20: =IF('Balance Sheet'!F18>0,'Profit & Loss'!F4/'Balance Sheet'!F18,0) -> 4.463136492 | G20: =IF('Balance Sheet'!G18>0,'Profit & Loss'!G4/'Balance Sheet'!G18,0) -> 4.036948749 | H20: =IF('Balance Sheet'!H18>0,'Profit & Loss'!H4/'Balance Sheet'!H18,0) -> 6.306504065 | I20: =IF('Balance Sheet'!I18>0,'Profit & Loss'!I4/'Balance Sheet'!I18,0) -> 7.775675676 | J20: =IF('Balance Sheet'!J18>0,'Profit & Loss'!J4/'Balance Sheet'!J18,0) -> 9.265924668 | K20: =IF('Balance Sheet'!K18>0,'Profit & Loss'!K4/'Balance Sheet'!K18,0) -> 8.444276078
A21: Inventory Days | B21: =IF('Profit & Loss'!B4>0,'Balance Sheet'!B18/('Profit & Loss'!B4/365),0) -> 100.2154955 | C21: =IF('Profit & Loss'!C4>0,'Balance Sheet'!C18/('Profit & Loss'!C4/365),0) -> 109.4516275 | D21: =IF('Profit & Loss'!D4>0,'Balance Sheet'!D18/('Profit & Loss'!D4/365),0) -> 108.5471174 | E21: =IF('Profit & Loss'!E4>0,'Balance Sheet'!E18/('Profit & Loss'!E4/365),0) -> 106.7148164 | F21: =IF('Profit & Loss'!F4>0,'Balance Sheet'!F18/('Profit & Loss'!F4/365),0) -> 81.78105255 | G21: =IF('Profit & Loss'!G4>0,'Balance Sheet'!G18/('Profit & Loss'!G4/365),0) -> 90.41482138 | H21: =IF('Profit & Loss'!H4>0,'Balance Sheet'!H18/('Profit & Loss'!H4/365),0) -> 57.87675648 | I21: =IF('Profit & Loss'!I4>0,'Balance Sheet'!I18/('Profit & Loss'!I4/365),0) -> 46.94125826 | J21: =IF('Profit & Loss'!J4>0,'Balance Sheet'!J18/('Profit & Loss'!J4/365),0) -> 39.39164337 | K21: =IF('Profit & Loss'!K4>0,'Balance Sheet'!K18/('Profit & Loss'!K4/365),0) -> 43.22454603
A22: Debtor Days | B22: =IF('Profit & Loss'!B4>0,'Balance Sheet'!B17/('Profit & Loss'!B4/365),0) -> 96.82027828 | C22: =IF('Profit & Loss'!C4>0,'Balance Sheet'!C17/('Profit & Loss'!C4/365),0) -> 102.4435142 | D22: =IF('Profit & Loss'!D4>0,'Balance Sheet'!D17/('Profit & Loss'!D4/365),0) -> 104.6081182 | E22: =IF('Profit & Loss'!E4>0,'Balance Sheet'!E17/('Profit & Loss'!E4/365),0) -> 86.29430024 | F22: =IF('Profit & Loss'!F4>0,'Balance Sheet'!F17/('Profit & Loss'!F4/365),0) -> 75.17321291 | G22: =IF('Profit & Loss'!G4>0,'Balance Sheet'!G17/('Profit & Loss'!G4/365),0) -> 75.97431355 | H22: =IF('Profit & Loss'!H4>0,'Balance Sheet'!H17/('Profit & Loss'!H4/365),0) -> 59.00213785 | I22: =IF('Profit & Loss'!I4>0,'Balance Sheet'!I17/('Profit & Loss'!I4/365),0) -> 61.08404919 | J22: =IF('Profit & Loss'!J4>0,'Balance Sheet'!J17/('Profit & Loss'!J4/365),0) -> 64.09470941 | K22: =IF('Profit & Loss'!K4>0,'Balance Sheet'!K17/('Profit & Loss'!K4/365),0) -> 78.67171627
A23: Creditor Days
A24: Cash Conversion Cycle
A26: Return on Equity | B26: =IF(SUM('Balance Sheet'!B4:B5)>0,'Profit & Loss'!B12/SUM('Balance Sheet'!B4:B5),"") -> 0.1270474045 | C26: =IF(SUM('Balance Sheet'!C4:C5)>0,'Profit & Loss'!C12/SUM('Balance Sheet'!C4:C5),"") -> 0.1622423254 | D26: =IF(SUM('Balance Sheet'!D4:D5)>0,'Profit & Loss'!D12/SUM('Balance Sheet'!D4:D5),"") -> 0.1618611164 | E26: =IF(SUM('Balance Sheet'!E4:E5)>0,'Profit & Loss'!E12/SUM('Balance Sheet'!E4:E5),"") -> 0.1838533499 | F26: =IF(SUM('Balance Sheet'!F4:F5)>0,'Profit & Loss'!F12/SUM('Balance Sheet'!F4:F5),"") -> 0.2216055587 | G26: =IF(SUM('Balance Sheet'!G4:G5)>0,'Profit & Loss'!G12/SUM('Balance Sheet'!G4:G5),"") -> 0.2592356474 | H26: =IF(SUM('Balance Sheet'!H4:H5)>0,'Profit & Loss'!H12/SUM('Balance Sheet'!H4:H5),"") -> 0.2849553923 | I26: =IF(SUM('Balance Sheet'!I4:I5)>0,'Profit & Loss'!I12/SUM('Balance Sheet'!I4:I5),"") -> 0.3941952773 | J26: =IF(SUM('Balance Sheet'!J4:J5)>0,'Profit & Loss'!J12/SUM('Balance Sheet'!J4:J5),"") -> 0.3684029058 | K26: =IF(SUM('Balance Sheet'!K4:K5)>0,'Profit & Loss'!K12/SUM('Balance Sheet'!K4:K5),"") -> 0.3424824668
A27: Return on Capital Emp | B27: =IF(('Balance Sheet'!B10+'Balance Sheet'!B16)>0,('Profit & Loss'!B6-'Profit & Loss'!B8-'Profit & Loss'!B11)/('Balance Sheet'!B10+'Balance Sheet'!B16),"") -> 0.1251846557 | C27: =IF(('Balance Sheet'!C10+'Balance Sheet'!C16)>0,('Profit & Loss'!C6-'Profit & Loss'!C8-'Profit & Loss'!C11)/('Balance Sheet'!C10+'Balance Sheet'!C16),"") -> 0.1326933527 | D27: =IF(('Balance Sheet'!D10+'Balance Sheet'!D16)>0,('Profit & Loss'!D6-'Profit & Loss'!D8-'Profit & Loss'!D11)/('Balance Sheet'!D10+'Balance Sheet'!D16),"") -> 0.1352381507 | E27: =IF(('Balance Sheet'!E10+'Balance Sheet'!E16)>0,('Profit & Loss'!E6-'Profit & Loss'!E8-'Profit & Loss'!E11)/('Balance Sheet'!E10+'Balance Sheet'!E16),"") -> 0.1484766248 | F27: =IF(('Balance Sheet'!F10+'Balance Sheet'!F16)>0,('Profit & Loss'!F6-'Profit & Loss'!F8-'Profit & Loss'!F11)/('Balance Sheet'!F10+'Balance Sheet'!F16),"") -> 0.1479760272 | G27: =IF(('Balance Sheet'!G10+'Balance Sheet'!G16)>0,('Profit & Loss'!G6-'Profit & Loss'!G8-'Profit & Loss'!G11)/('Balance Sheet'!G10+'Balance Sheet'!G16),"") -> 0.1776695638 | H27: =IF(('Balance Sheet'!H10+'Balance Sheet'!H16)>0,('Profit & Loss'!H6-'Profit & Loss'!H8-'Profit & Loss'!H11)/('Balance Sheet'!H10+'Balance Sheet'!H16),"") -> 0.2526341189 | I27: =IF(('Balance Sheet'!I10+'Balance Sheet'!I16)>0,('Profit & Loss'!I6-'Profit & Loss'!I8-'Profit & Loss'!I11)/('Balance Sheet'!I10+'Balance Sheet'!I16),"") -> 0.403853279 | J27: =IF(('Balance Sheet'!J10+'Balance Sheet'!J16)>0,('Profit & Loss'!J6-'Profit & Loss'!J8-'Profit & Loss'!J11)/('Balance Sheet'!J10+'Balance Sheet'!J16),"") -> 0.4372522924 | K27: =IF(('Balance Sheet'!K10+'Balance Sheet'!K16)>0,('Profit & Loss'!K6-'Profit & Loss'!K8-'Profit & Loss'!K11)/('Balance Sheet'!K10+'Balance Sheet'!K16),"") -> 0.4064142678
A31: Common Size Balance Sheet | B31: =B3 -> 2007-03-31 | C31: =C3 -> 2008-03-31 | D31: 2009-03-31 | E31: 2010-03-31 | F31: 2011-03-31 | G31: 2012-03-31 | H31: 2013-03-31 | I31: 2014-03-31 | J31: 2015-03-31 | K31: 2016-03-31 | L31: Check back how Assets are being put to use
A32: Net Block/Total Assets | B32: =B10/B$8 -> 0.2311018339 | C32: =C10/C$8 -> 0.2770369564 | D32: 0.2931187993 | E32: 0.335477447 | F32: 0.4098935192 | G32: 0.3783646677 | H32: 0.3791400632 | I32: 0.2942589023 | J32: 0.2509429196 | K32: 0.303607686
A33: Working Capital/Total Assets | B33: =B16/B$8 -> 0.5511033249 | C33: =C16/C$8 -> 0.4742012736 | D33: 0.4354701942 | E33: 0.3763218162 | F33: 0.3442431439 | G33: 0.3698021552 | H33: 0.3126486667 | I33: 0.3026951878 | J33: 0.3446599828 | K33: 0.3410157458
A34: Debtors/Total Assets | B34: =B17/B$8 -> 0.255106605 | C34: =C17/C$8 -> 0.2362978283 | D34: 0.2122445519 | E34: 0.1926316838 | F34: 0.1991343649 | G34: 0.2167530092 | H34: 0.2093087955 | I34: 0.2129819794 | J34: 0.2253948068 | K34: 0.2503395232
A35: Inventory/Total Assets | B35: =B18/B$8 -> 0.2640524825 | C35: =C18/C$8 -> 0.2524628531 | D35: 0.220236581 | E35: 0.2382156726 | F35: 0.2166385782 | G35: 0.2579514535 | H35: 0.2053165296 | I35: 0.1636702581 | J35: 0.1385242546 | K35: 0.1375438691
A37: Borrowings/Total Assets | B37: =B6/B$8 -> 0.4337632324 | C37: =C6/C$8 -> 0.4722690905 | D37: 0.5304417875 | E37: 0.4539679379 | F37: 0.3650796691 | G37: 0.3068976649 | H37: 0.1736566095 | I37: 0.1374345688 | J37: 0.06304713291 | K37: 0.0624789899

Sheet Cash Flow
A1: ='Balance Sheet'!A1 -> AJANTA PHARMA LTD | E1: =UPDATE ->  | J1: SCREENER.IN
A3: Narration | B3: ='Data Sheet'!B81 -> 2007-03-31 | C3: ='Data Sheet'!C81 -> 2008-03-31 | D3: ='Data Sheet'!D81 -> 2009-03-31 | E3: ='Data Sheet'!E81 -> 2010-03-31 | F3: ='Data Sheet'!F81 -> 2011-03-31 | G3: ='Data Sheet'!G81 -> 2012-03-31 | H3: ='Data Sheet'!H81 -> 2013-03-31 | I3: ='Data Sheet'!I81 -> 2014-03-31 | J3: ='Data Sheet'!J81 -> 2015-03-31 | K3: ='Data Sheet'!K81 -> 2016-03-31
A4: Cash from Operating Activity | B4: ='Data Sheet'!B82 -> 21.13 | C4: ='Data Sheet'!C82 -> 19.08 | D4: ='Data Sheet'!D82 -> 34.59 | E4: ='Data Sheet'!E82 -> 95.11 | F4: ='Data Sheet'!F82 -> 95.37 | G4: ='Data Sheet'!G82 -> 70.35 | H4: ='Data Sheet'!H82 -> 234.29 | I4: ='Data Sheet'!I82 -> 212.42 | J4: ='Data Sheet'!J82 -> 279.42 | K4: ='Data Sheet'!K82 -> 326.38
A5: Cash from Investing Activity | B5: ='Data Sheet'!B83 -> -24.04 | C5: ='Data Sheet'!C83 -> -59.14 | D5: ='Data Sheet'!D83 -> -81.93 | E5: ='Data Sheet'!E83 -> -42.67 | F5: ='Data Sheet'!F83 -> -50.71 | G5: ='Data Sheet'!G83 -> -53.07 | H5: ='Data Sheet'!H83 -> -103.7 | I5: ='Data Sheet'!I83 -> -187.79 | J5: ='Data Sheet'!J83 -> -158.36 | K5: ='Data Sheet'!K83 -> -209.29
A6: Cash from Financing Activity | B6: ='Data Sheet'!B84 -> 3.64 | C6: ='Data Sheet'!C84 -> 38.37 | D6: ='Data Sheet'!D84 -> 49.65 | E6: ='Data Sheet'!E84 -> -45.67 | F6: ='Data Sheet'!F84 -> -55.89 | G6: ='Data Sheet'!G84 -> -12.84 | H6: ='Data Sheet'!H84 -> -104.49 | I6: ='Data Sheet'!I84 -> -20.13 | J6: ='Data Sheet'!J84 -> -105.19 | K6: ='Data Sheet'!K84 -> -118.57
A7: Net Cash Flow | B7: ='Data Sheet'!B85 -> 0.73 | C7: ='Data Sheet'!C85 -> -1.69 | D7: ='Data Sheet'!D85 -> 2.31 | E7: ='Data Sheet'!E85 -> 6.77 | F7: ='Data Sheet'!F85 -> -11.23 | G7: ='Data Sheet'!G85 -> 4.44 | H7: ='Data Sheet'!H85 -> 26.1 | I7: ='Data Sheet'!I85 -> 4.5 | J7: ='Data Sheet'!J85 -> 15.87 | K7: ='Data Sheet'!K85 -> -1.48

Sheet Customization
A1: ='Data Sheet'!B1 -> AJANTA PHARMA LTD
B4: DELTA NETWORTH | C4: DELTA MKTCAP | D4: IMPACT* | F4: HISTORICAL VALUATIONS | M4: PRE-TAX BOND
A5: 10 YR | B5: ='Calculated Data'!K11-'Calculated Data'!B11 -> 1056.67 | C5: ='Calculated Data'!K26-'Calculated Data'!B26 -> 12975.7209 | D5: =C5/B5 -> 12.27982331 | G5: P/E | H5: P/B | I5: EV/EBITDA | J5: P/SALES | K5: YIELD | M5: LongTerm Bond | N5: 0.09
A6: 7 YR | B6: ='Calculated Data'!K11-'Calculated Data'!E11 -> 987.13 | C6: ='Calculated Data'!K26-'Calculated Data'!E26 -> 12859.38048 | D6: =C6/B6 -> 13.02703846 | F6: MIN | G6: =MIN('Calculated Data'!B31:K31) -> 2.175744243 | H6: =MIN('Calculated Data'!B32:K32) -> 0.3521683922 | I6: =MIN('Calculated Data'!B35:K35) -> 3.967175679 | J6: =MIN('Calculated Data'!B34:K34) -> 0.1583820235 | K6: =MAX('Calculated Data'!B36:K36) -> 0.05295578584 | M6: LTB Quote | N6: =('Profit & Loss'!$L$10/'Data Sheet'!$B$61)/N5 -> 25.15489621
A7: 5 YR | B7: ='Calculated Data'!K11-'Calculated Data'!G11 -> 874.03 | C7: ='Calculated Data'!K26-'Calculated Data'!G26 -> 12541.39752 | D7: =C7/B7 -> 14.34893256 | F7: MAX | G7: =MAX('Calculated Data'!B31:K31) -> 38.54788182 | H7: =MAX('Calculated Data'!B32:K32) -> 14.20115167 | I7: =MAX('Calculated Data'!B35:K35) -> 23.1323221 | J7: =MAX('Calculated Data'!B34:K34) -> 8.10584344 | K7: =MIN('Calculated Data'!B36:K36) -> 0.004422138715 | M7: Equity Quoting @ | N7: =('Profit & Loss'!$L$6/'Data Sheet'!$B$6)/'Data Sheet'!$B$8 -> 0.04077629937
A8: 3 YR | B8: ='Calculated Data'!K11-'Calculated Data'!I11 -> 578.75 | C8: ='Calculated Data'!K26-'Calculated Data'!I26 -> 9539.912308 | D8: =C8/B8 -> 16.48364978 | F8: TRAILING | G8: ='Data Sheet'!B8/'Profit & Loss'!L13 -> 33.66658138 | H8: ='Calculated Data'!L26/'Calculated Data'!K11 -> 13.47226251 | I8: ='Calculated Data'!K35 -> 21.90234755 | J8: ='Calculated Data'!L26/'Data Sheet'!K17 -> 9.140391194 | K8: ='Data Sheet'!K31/'Calculated Data'!L26 -> 0.004458433342
A9: 1 YR | B9: ='Calculated Data'!K11-'Calculated Data'!J11 -> 330.97 | C9: ='Calculated Data'!K26-'Calculated Data'!J26 -> 1100.950648 | D9: =C9/B9 -> 3.326436377
A10: * IMPACT – Every Rupee retained added xx.yy in incremental market value
A12: =A1 -> AJANTA PHARMA LTD | B12: SALES | C12: GROSS PROFIT | D12: EBIT | E12: PAT | F12: DIVIDEND | G12: EPA** | H12: MKTCAP | I12: CFO** | J12: FCF** | K12: NETWORTH | L12: TOTAL RETURNS
A13: 10 YR CAGR | B13: =POWER('Data Sheet'!$K17/'Data Sheet'!$B17, 1/9)-1 -> 0.2352485135 | C13: =POWER('Calculated Data'!$K4/'Calculated Data'!$B4, 1/9)-1 -> 0.3101822237 | D13: =POWER('Calculated Data'!$K5/'Calculated Data'!$B5, 1/9)-1 -> 0.3734398108 | E13: =POWER('Calculated Data'!$K8/'Calculated Data'!$B8, 1/9)-1 -> 0.4444986332 | F13: =POWER('Calculated Data'!$K9/'Calculated Data'!$B9, 1/9)-1 -> 0.4596941478 | G13: =POWER('Calculated Data'!$K24/'Calculated Data'!$B24, 1/9)-1 -> -2.379074166 | H13: =POWER('Calculated Data'!$K26/'Calculated Data'!$B26, 1/9)-1 -> 0.7884867565 | I13: =POWER('Calculated Data'!$K17/'Calculated Data'!$B17, 1/9)-1 -> 0.3554751502 | J13: =POWER('Calculated Data'!$K19/'Calculated Data'!$C19, 1/8)-1 ->  | K13: =POWER('Calculated Data'!$K11/'Calculated Data'!$B11, 1/9)-1 -> 0.2937925027 | L13: =POWER('Calculated Data'!$K27/'Calculated Data'!$B27, 1/9)-1 -> 0.7830005257
A14: 5 YR CAGR | B14: =POWER('Data Sheet'!$K17/'Data Sheet'!$G17, 1/4)-1 -> 0.2637032471 | C14: =POWER('Calculated Data'!$K4/'Calculated Data'!$G4, 1/4)-1 -> 0.3120047396 | D14: =POWER('Calculated Data'!$K5/'Calculated Data'!$G5, 1/4)-1 -> 0.5094780372 | E14: =POWER('Calculated Data'!$K8/'Calculated Data'!$G8, 1/4)-1 -> 0.5097615854 | F14: =POWER('Calculated Data'!$K9/'Calculated Data'!$G9, 1/4)-1 -> 0.6827497543 | G14: =POWER('Calculated Data'!$K24/'Calculated Data'!$G24, 1/4)-1 -> 0.7430835964 | H14: =POWER('Calculated Data'!$K26/'Calculated Data'!$G26, 1/4)-1 -> 1.255572232 | I14: =POWER('Calculated Data'!$K17/'Calculated Data'!$G17, 1/4)-1 -> 0.4676241823 | J14: =POWER('Calculated Data'!$K19/'Calculated Data'!$G19, 1/4)-1 -> 0.2297311397 | K14: =POWER('Calculated Data'!$K11/'Calculated Data'!$G11, 1/4)-1 -> 0.4082263471 | L14: =POWER('Calculated Data'!$K27/'Calculated Data'!$G27, 1/4)-1 -> 1.248878279
A15: 3 YR CAGR | B15: =POWER('Data Sheet'!$K17/'Data Sheet'!$I17, 1/2)-1 -> 0.1956889697 | C15: =POWER('Calculated Data'!$K4/'Calculated Data'!$I4, 1/2)-1 -> 0.2063615656 | D15: =POWER('Calculated Data'!$K5/'Calculated Data'!$I5, 1/2)-1 -> 0.2771824423 | E15: =POWER('Calculated Data'!$K8/'Calculated Data'!$I8, 1/2)-1 -> 0.3100791992 | F15: =POWER('Calculated Data'!$K9/'Calculated Data'!$I9, 1/2)-1 -> 0.4146154989 | G15: =POWER('Calculated Data'!$K24/'Calculated Data'!$I24, 1/2)-1 -> 0.2552530006 | H15: =POWER('Calculated Data'!$K26/'Calculated Data'!$I26, 1/2)-1 -> 0.9290993676 | I15: =POWER('Calculated Data'!$K17/'Calculated Data'!$I17, 1/2)-1 -> 0.2395500488 | J15: =POWER('Calculated Data'!$K19/'Calculated Data'!$I19, 1/2)-1 -> -0.2266849807 | K15: =POWER('Calculated Data'!$K11/'Calculated Data'!$I11, 1/2)-1 -> 0.4055104799 | L15: =POWER('Calculated Data'!$K27/'Calculated Data'!$I27, 1/2)-1 -> 0.9246640273
A16: 1 YR GROWTH | B16: =('Data Sheet'!$K17-'Data Sheet'!$J17)/'Data Sheet'!$J17 -> 0.1723513125 | C16: =('Calculated Data'!$K4-'Calculated Data'!$J4)/'Calculated Data'!$J4 -> 0.1335299602 | D16: =('Calculated Data'!$K5-'Calculated Data'!$J5)/'Calculated Data'!$J5 -> 0.1956140541 | E16: =('Calculated Data'!$K8-'Calculated Data'!$J8)/'Calculated Data'!$J8 -> 0.2954560124 | F16: =('Calculated Data'!$K9-'Calculated Data'!$J9)/'Calculated Data'!$J9 -> 0.3328284741 | G16: =('Calculated Data'!$K24-'Calculated Data'!$J24)/'Calculated Data'!$J24 -> 0.2085754191 | H16: =('Calculated Data'!$K26-'Calculated Data'!$J26)/'Calculated Data'!$J26 -> 0.09217259527 | I16: =('Calculated Data'!$K17-'Calculated Data'!$J17)/'Calculated Data'!$J17 -> 0.168062415 | J16: =('Calculated Data'!$K19-'Calculated Data'!$J19)/'Calculated Data'!$J19 -> -0.6613775188 | K16: =('Calculated Data'!$K11-'Calculated Data'!$J11)/'Calculated Data'!$J11 -> 0.39350129 | L16: =('Calculated Data'!$K27-'Calculated Data'!$J27)/'Calculated Data'!$J27 -> 0.09323212357
A17: **modify (if, then) for negative values
A18: =A1 -> AJANTA PHARMA LTD | B18: ='Data Sheet'!B16 -> 2007-03-31 | C18: ='Data Sheet'!C16 -> 2008-03-31 | D18: ='Data Sheet'!D16 -> 2009-03-31 | E18: ='Data Sheet'!E16 -> 2010-03-31 | F18: ='Data Sheet'!F16 -> 2011-03-31 | G18: ='Data Sheet'!G16 -> 2012-03-31 | H18: ='Data Sheet'!H16 -> 2013-03-31 | I18: ='Data Sheet'!I16 -> 2014-03-31 | J18: ='Data Sheet'!J16 -> 2015-03-31 | K18: ='Data Sheet'!K16 -> 2016-03-31
A19: Total Assets/Networth= Financial Leverage | B19: ='Calculated Data'!B15/'Calculated Data'!B11 -> 2.324984834 | C19: ='Calculated Data'!C15/'Calculated Data'!C11 -> 2.724751594 | D19: ='Calculated Data'!D15/'Calculated Data'!D11 -> 3.002482337 | E19: ='Calculated Data'!E15/'Calculated Data'!E11 -> 2.715351755 | F19: ='Calculated Data'!F15/'Calculated Data'!F11 -> 2.281868636 | G19: ='Calculated Data'!G15/'Calculated Data'!G11 -> 2.182699728 | H19: ='Calculated Data'!H15/'Calculated Data'!H11 -> 1.827237374 | I19: ='Calculated Data'!I15/'Calculated Data'!I11 -> 1.60029327 | J19: ='Calculated Data'!J15/'Calculated Data'!J11 -> 1.36493122 | K19: ='Calculated Data'!K15/'Calculated Data'!K11 -> 1.269030596
A20: Long term debt/Earning | B20: ='Data Sheet'!B59/'Data Sheet'!B30 -> 7.93792633 | C20: ='Data Sheet'!C59/'Data Sheet'!C30 -> 7.931444241 | D20: ='Data Sheet'!D59/'Data Sheet'!D30 -> 9.839559575 | E20: ='Data Sheet'!E59/'Data Sheet'!E30 -> 6.704705882 | F20: ='Data Sheet'!F59/'Data Sheet'!F30 -> 3.759219089 | G20: ='Data Sheet'!G59/'Data Sheet'!G30 -> 2.584002071 | H20: ='Data Sheet'!H59/'Data Sheet'!H30 -> 1.113549193 | I20: ='Data Sheet'!I59/'Data Sheet'!I30 -> 0.5579356935 | J20: ='Data Sheet'!J59/'Data Sheet'!J30 -> 0.2335893629 | K20: ='Data Sheet'!K59/'Data Sheet'!K30 -> 0.231508931
A21: Current liablility/Earning | B21: ='Data Sheet'!B60/'Data Sheet'!B30 -> 2.491132333 | C21: ='Data Sheet'!C60/'Data Sheet'!C30 -> 2.699268739 | D21: ='Data Sheet'!D60/'Data Sheet'!D30 -> 2.532048761 | E21: ='Data Sheet'!E60/'Data Sheet'!E30 -> 2.625294118 | F21: ='Data Sheet'!F60/'Data Sheet'!F30 -> 2.02524157 | G21: ='Data Sheet'!G60/'Data Sheet'!G30 -> 1.978255242 | H21: ='Data Sheet'!H60/'Data Sheet'!H30 -> 1.789492463 | I21: ='Data Sheet'!I60/'Data Sheet'!I30 -> 0.9648965281 | J21: ='Data Sheet'!J60/'Data Sheet'!J30 -> 0.7569870264 | K21: ='Data Sheet'!K60/'Data Sheet'!K30 -> 0.5540220722
A22: Total liability/Earning | B22: =('Data Sheet'!B59+'Data Sheet'!B60)/'Data Sheet'!B30 -> 10.42905866 | C22: =('Data Sheet'!C59+'Data Sheet'!C60)/'Data Sheet'!C30 -> 10.63071298 | D22: =('Data Sheet'!D59+'Data Sheet'!D60)/'Data Sheet'!D30 -> 12.37160834 | E22: =('Data Sheet'!E59+'Data Sheet'!E60)/'Data Sheet'!E30 -> 9.33 | F22: =('Data Sheet'!F59+'Data Sheet'!F60)/'Data Sheet'!F30 -> 5.784460659 | G22: =('Data Sheet'!G59+'Data Sheet'!G60)/'Data Sheet'!G30 -> 4.562257313 | H22: =('Data Sheet'!H59+'Data Sheet'!H60)/'Data Sheet'!H30 -> 2.903041656 | I22: =('Data Sheet'!I59+'Data Sheet'!I60)/'Data Sheet'!I30 -> 1.522832222 | J22: =('Data Sheet'!J59+'Data Sheet'!J60)/'Data Sheet'!J30 -> 0.9905763893 | K22: =('Data Sheet'!K59+'Data Sheet'!K60)/'Data Sheet'!K30 -> 0.7855310032
A23: Debt/Equity | B23: ='Data Sheet'!B59/'Calculated Data'!B11 -> 1.008492937 | C23: ='Data Sheet'!C59/'Calculated Data'!C11 -> 1.286815957 | D23: ='Data Sheet'!D59/'Calculated Data'!D11 -> 1.592642098 | E23: ='Data Sheet'!E59/'Calculated Data'!E11 -> 1.232682637 | F23: ='Data Sheet'!F59/'Calculated Data'!F11 -> 0.8330638465 | G23: ='Data Sheet'!G59/'Calculated Data'!G11 -> 0.6698654498 | H23: ='Data Sheet'!H59/'Calculated Data'!H11 -> 0.3173118471 | I23: ='Data Sheet'!I59/'Calculated Data'!I11 -> 0.2199356154 | J23: ='Data Sheet'!J59/'Calculated Data'!J11 -> 0.08605500006 | K23: ='Data Sheet'!K59/'Calculated Data'!K11 -> 0.07928774977
A24: Interest Coverage | B24: ='Calculated Data'!B5/'Data Sheet'!B27 -> 2.56542811 | C24: ='Calculated Data'!C5/'Data Sheet'!C27 -> 2.789343247 | D24: ='Calculated Data'!D5/'Data Sheet'!D27 -> 2.26581741 | E24: ='Calculated Data'!E5/'Data Sheet'!E27 -> 2.923573201 | F24: ='Calculated Data'!F5/'Data Sheet'!F27 -> 4.129300777 | G24: ='Calculated Data'!G5/'Data Sheet'!G27 -> 6.894361633 | H24: ='Calculated Data'!H5/'Data Sheet'!H27 -> 10.24150549 | I24: ='Calculated Data'!I5/'Data Sheet'!I27 -> 38.78350515 | J24: ='Calculated Data'!J5/'Data Sheet'!J27 -> 78.02871622 | K24: ='Calculated Data'!K5/'Data Sheet'!K27 -> 112.9427403
A25: Working Capital/Sales | B25: ='Calculated Data'!B12/'Data Sheet'!B17 -> 0.5730398047 | C25: ='Calculated Data'!C12/'Data Sheet'!C17 -> 0.5632414261 | D25: ='Calculated Data'!D12/'Data Sheet'!D17 -> 0.5880231293 | E25: ='Calculated Data'!E12/'Data Sheet'!E17 -> 0.4618712421 | F25: ='Calculated Data'!F12/'Data Sheet'!F17 -> 0.3560322459 | G25: ='Calculated Data'!G12/'Data Sheet'!G17 -> 0.3551225273 | H25: ='Calculated Data'!H12/'Data Sheet'!H17 -> 0.2414593271 | I25: ='Calculated Data'!I12/'Data Sheet'!I17 -> 0.2378469636 | J25: ='Calculated Data'!J12/'Data Sheet'!J17 -> 0.2685197752 | K25: ='Calculated Data'!K12/'Data Sheet'!K17 -> 0.2936099518 | L25: Check for improving or deteriorating picture
A26: Inventory Turns | B26: =365/B27 -> 3.642151327 | C26: 3.334806511 | D26: 3.362595052 | E26: 3.420331048 | F26: 4.463136492 | G26: 4.036948749 | H26: 6.306504065 | I26: 7.775675676 | J26: 9.265924668 | K26: 8.444276078
A27: Inventory Days | B27: ='Balance Sheet'!B21 -> 100.2154955 | C27: ='Balance Sheet'!C21 -> 109.4516275 | D27: ='Balance Sheet'!D21 -> 108.5471174 | E27: ='Balance Sheet'!E21 -> 106.7148164 | F27: ='Balance Sheet'!F21 -> 81.78105255 | G27: ='Balance Sheet'!G21 -> 90.41482138 | H27: ='Balance Sheet'!H21 -> 57.87675648 | I27: ='Balance Sheet'!I21 -> 46.94125826 | J27: ='Balance Sheet'!J21 -> 39.39164337 | K27: ='Balance Sheet'!K21 -> 43.22454603
A28: Debtor Days | B28: ='Balance Sheet'!B22 -> 96.82027828 | C28: ='Balance Sheet'!C22 -> 102.4435142 | D28: ='Balance Sheet'!D22 -> 104.6081182 | E28: ='Balance Sheet'!E22 -> 86.29430024 | F28: ='Balance Sheet'!F22 -> 75.17321291 | G28: ='Balance Sheet'!G22 -> 75.97431355 | H28: ='Balance Sheet'!H22 -> 59.00213785 | I28: ='Balance Sheet'!I22 -> 61.08404919 | J28: ='Balance Sheet'!J22 -> 64.09470941 | K28: ='Balance Sheet'!K22 -> 78.67171627
A29: Creditor Days | L29: Check back to see if Creditor policy change is impacting Working Cap cycle
A30: Cash Conversion Cycle
A31: Cash In/Cash Out Ratio | B31: =('Data Sheet'!B67+'Data Sheet'!B69)/'Data Sheet'!B60 -> 2.07803943 | C31: =('Data Sheet'!C67+'Data Sheet'!C69)/'Data Sheet'!C60 -> 1.567727735 | D31: =('Data Sheet'!D67+'Data Sheet'!D69)/'Data Sheet'!D60 -> 1.680229849 | E31: =('Data Sheet'!E67+'Data Sheet'!E69)/'Data Sheet'!E60 -> 1.249943984 | F31: =('Data Sheet'!F67+'Data Sheet'!F69)/'Data Sheet'!F60 -> 1.12473223 | G31: =('Data Sheet'!G67+'Data Sheet'!G69)/'Data Sheet'!G60 -> 0.9975791678 | H31: =('Data Sheet'!H67+'Data Sheet'!H69)/'Data Sheet'!H60 -> 0.9804605722 | I31: =('Data Sheet'!I67+'Data Sheet'!I69)/'Data Sheet'!I60 -> 1.163690344 | J31: =('Data Sheet'!J67+'Data Sheet'!J69)/'Data Sheet'!J60 -> 1.68622101 | K31: =('Data Sheet'!K67+'Data Sheet'!K69)/'Data Sheet'!K60 -> 1.92144431
A32: Current Ratio | B32: ='Data Sheet'!B65/'Data Sheet'!B60 -> 5.048466594 | C32: ='Data Sheet'!C65/'Data Sheet'!C60 -> 3.950389434 | D32: ='Data Sheet'!D65/'Data Sheet'!D60 -> 4.190246933 | E32: ='Data Sheet'!E65/'Data Sheet'!E60 -> 3.117073717 | F32: ='Data Sheet'!F65/'Data Sheet'!F60 -> 2.750243427 | G32: ='Data Sheet'!G65/'Data Sheet'!G60 -> 2.573933525 | H32: ='Data Sheet'!H65/'Data Sheet'!H60 -> 2.120326986 | I32: ='Data Sheet'!I65/'Data Sheet'!I60 -> 2.273541011 | J32: ='Data Sheet'!J65/'Data Sheet'!J60 -> 2.686903138 | K32: ='Data Sheet'!K65/'Data Sheet'!K60 -> 3.28076802
A33: CFO/PAT | B33: ='Calculated Data'!B17/'Calculated Data'!B8 -> 1.441336971 | C33: ='Calculated Data'!C17/'Calculated Data'!C8 -> 0.8720292505 | D33: ='Calculated Data'!D17/'Calculated Data'!D8 -> 1.360204483 | E33: ='Calculated Data'!E17/'Calculated Data'!E8 -> 2.797352941 | F33: ='Calculated Data'!F17/'Calculated Data'!F8 -> 1.880694143 | G33: ='Calculated Data'!G17/'Calculated Data'!G8 -> 0.9105617396 | H33: ='Calculated Data'!H17/'Calculated Data'!H8 -> 2.089822496 | I33: ='Calculated Data'!I17/'Calculated Data'!I8 -> 0.9082435437 | J33: ='Calculated Data'!J17/'Calculated Data'!J8 -> 0.9017620861 | K33: ='Calculated Data'!K17/'Calculated Data'!K8 -> 0.8130838793
A35: Gross Margin =Gross Profit/Sales | B35: ='Calculated Data'!B4/'Data Sheet'!B17 -> 0.4307972559 | C35: ='Calculated Data'!C4/'Data Sheet'!C17 -> 0.5016323496 | D35: ='Calculated Data'!D4/'Data Sheet'!D17 -> 0.616562661 | E35: ='Calculated Data'!E4/'Data Sheet'!E17 -> 0.6757833504 | F35: ='Calculated Data'!F4/'Data Sheet'!F17 -> 0.6459286549 | G35: ='Calculated Data'!G4/'Data Sheet'!G17 -> 0.6299527606 | H35: ='Calculated Data'!H4/'Data Sheet'!H17 -> 0.6646469855 | I35: ='Calculated Data'!I4/'Data Sheet'!I17 -> 0.7190360329 | J35: ='Calculated Data'!J4/'Data Sheet'!J17 -> 0.7569966611 | K35: ='Calculated Data'!K4/'Data Sheet'!K17 -> 0.7319294021
A36: EBIT/Sales | B36: ='Calculated Data'!B5/'Data Sheet'!B17 -> 0.123096004 | C36: ='Calculated Data'!C5/'Data Sheet'!C17 -> 0.1455215438 | D36: ='Calculated Data'!D5/'Data Sheet'!D17 -> 0.1527451766 | E36: ='Calculated Data'!E5/'Data Sheet'!E17 -> 0.143984944 | F36: ='Calculated Data'!F5/'Data Sheet'!F17 -> 0.1473844752 | G36: ='Calculated Data'!G5/'Data Sheet'!G17 -> 0.1570416298 | H36: ='Calculated Data'!H5/'Data Sheet'!H17 -> 0.2104765588 | I36: ='Calculated Data'!I5/'Data Sheet'!I17 -> 0.280202592 | J36: ='Calculated Data'!J5/'Data Sheet'!J17 -> 0.3134789218 | K36: ='Calculated Data'!K5/'Data Sheet'!K17 -> 0.3196992237
A37: EBITDA/Sales | B37: ='Calculated Data'!B6/'Data Sheet'!B17 -> 0.1569706601 | C37: ='Calculated Data'!C6/'Data Sheet'!C17 -> 0.1709603388 | D37: ='Calculated Data'!D6/'Data Sheet'!D17 -> 0.1933932559 | E37: ='Calculated Data'!E6/'Data Sheet'!E17 -> 0.1946521973 | F37: ='Calculated Data'!F6/'Data Sheet'!F17 -> 0.1964069959 | G37: ='Calculated Data'!G6/'Data Sheet'!G17 -> 0.2040891645 | H37: ='Calculated Data'!H6/'Data Sheet'!H17 -> 0.247185338 | I37: ='Calculated Data'!I6/'Data Sheet'!I17 -> 0.3165168744 | J37: ='Calculated Data'!J6/'Data Sheet'!J17 -> 0.3485233041 | K37: ='Calculated Data'!K6/'Data Sheet'!K17 -> 0.3457827071
A38: Op Profit (Ex Other Income)/Sales | B38: ='Calculated Data'!B7/'Data Sheet'!B17 -> 0.1537924887 | C38: ='Calculated Data'!C7/'Data Sheet'!C17 -> 0.1659824805 | D38: ='Calculated Data'!D7/'Data Sheet'!D17 -> 0.1862369039 | E38: ='Calculated Data'!E7/'Data Sheet'!E17 -> 0.1920125141 | F38: ='Calculated Data'!F7/'Data Sheet'!F17 -> 0.1756887912 | G38: ='Calculated Data'!G7/'Data Sheet'!G17 -> 0.1949069973 | H38: ='Calculated Data'!H7/'Data Sheet'!H17 -> 0.2411692665 | I38: ='Calculated Data'!I7/'Data Sheet'!I17 -> 0.3051707301 | J38: ='Calculated Data'!J7/'Data Sheet'!J17 -> 0.3371223432 | K38: ='Calculated Data'!K7/'Data Sheet'!K17 -> 0.3361562462
A39: Net Margin =PAT/Sales | B39: ='Calculated Data'!B8/'Data Sheet'!B17 -> 0.05681950312 | C39: ='Calculated Data'!C8/'Data Sheet'!C17 -> 0.07072437534 | D39: ='Calculated Data'!D8/'Data Sheet'!D17 -> 0.07279441232 | E39: ='Calculated Data'!E8/'Data Sheet'!E17 -> 0.08310113897 | F39: ='Calculated Data'!F8/'Data Sheet'!F17 -> 0.1004416979 | G39: ='Calculated Data'!G8/'Data Sheet'!G17 -> 0.1140537349 | H39: ='Calculated Data'!H8/'Data Sheet'!H17 -> 0.1204396029 | I39: ='Calculated Data'!I8/'Data Sheet'!I17 -> 0.1935547942 | J39: ='Calculated Data'!J8/'Data Sheet'!J17 -> 0.2102798664 | K39: ='Calculated Data'!K8/'Data Sheet'!K17 -> 0.2323606537
A40: Op Cash Flow/Sales | B40: ='Calculated Data'!B17/'Data Sheet'!B17 -> 0.08189605054 | C40: ='Calculated Data'!C17/'Data Sheet'!C17 -> 0.06167372402 | D40: ='Calculated Data'!D17/'Data Sheet'!D17 -> 0.09901528597 | E40: ='Calculated Data'!E17/'Data Sheet'!E17 -> 0.2324632155 | F40: ='Calculated Data'!F17/'Data Sheet'!F17 -> 0.1889001129 | G40: ='Calculated Data'!G17/'Data Sheet'!G17 -> 0.1038529672 | H40: ='Calculated Data'!H17/'Data Sheet'!H17 -> 0.2516973916 | I40: ='Calculated Data'!I17/'Data Sheet'!I17 -> 0.1757948922 | J40: ='Calculated Data'!J17/'Data Sheet'!J17 -> 0.189622411 | K40: ='Calculated Data'!K17/'Data Sheet'!K17 -> 0.1889287017
A41: Free Cash Flow/Sales | B41: ='Calculated Data'!B19/'Data Sheet'!B17 -> 0 | C41: ='Calculated Data'!C19/'Data Sheet'!C17 -> -0.1261596147 | D41: ='Calculated Data'!D19/'Data Sheet'!D17 -> -0.1355985573 | E41: ='Calculated Data'!E19/'Data Sheet'!E17 -> 0.1280001955 | F41: ='Calculated Data'!F19/'Data Sheet'!F17 -> 0.1085824074 | G41: ='Calculated Data'!G19/'Data Sheet'!G17 -> 0.03113374668 | H41: ='Calculated Data'!H19/'Data Sheet'!H17 -> 0.1758734047 | I41: ='Calculated Data'!I19/'Data Sheet'!I17 -> 0.06674445934 | J41: ='Calculated Data'!J19/'Data Sheet'!J17 -> 0.09665707538 | K41: ='Calculated Data'!K19/'Data Sheet'!K17 -> 0.0279184732
A42: EPA/Sales | B42: ='Calculated Data'!B24/'Data Sheet'!B17 -> -0.0572660846 | C42: ='Calculated Data'!C24/'Data Sheet'!C17 -> -0.05651056375 | D42: ='Calculated Data'!D24/'Data Sheet'!D17 -> -0.104008511 | E42: ='Calculated Data'!E24/'Data Sheet'!E17 -> -0.04348561189 | F42: ='Calculated Data'!F24/'Data Sheet'!F17 -> 0.01169902666 | G42: ='Calculated Data'!G24/'Data Sheet'!G17 -> 0.04262894466 | H42: ='Calculated Data'!H24/'Data Sheet'!H17 -> 0.07373796338 | I42: ='Calculated Data'!I24/'Data Sheet'!I17 -> 0.1400138341 | J42: ='Calculated Data'!J24/'Data Sheet'!J17 -> 0.1496859562 | K42: ='Calculated Data'!K24/'Data Sheet'!K17 -> 0.1543110545
A44: Sales/Invested Capital =Capital Turns | B44: ='Data Sheet'!B17/'Calculated Data'!B13 -> 1.155492857 | C44: ='Data Sheet'!C17/'Calculated Data'!C13 -> 1.031474011 | D44: ='Data Sheet'!D17/'Calculated Data'!D13 -> 0.8758461616 | E44: ='Data Sheet'!E17/'Calculated Data'!E13 -> 1.011671035 | F44: ='Data Sheet'!F17/'Calculated Data'!F13 -> 1.228394161 | G44: ='Data Sheet'!G17/'Calculated Data'!G13 -> 1.38470973 | H44: ='Data Sheet'!H17/'Calculated Data'!H13 -> 1.825856692 | I44: ='Data Sheet'!I17/'Calculated Data'!I13 -> 1.829875519 | J44: ='Data Sheet'!J17/'Calculated Data'!J13 -> 1.72554071 | K44: ='Data Sheet'!K17/'Calculated Data'!K13 -> 1.441289838
A45: Sales/Fixed Assets= Fixed Asset Turns | B45: ='Data Sheet'!B17/'Data Sheet'!B62 -> 4.161451613 | C45: ='Data Sheet'!C17/'Data Sheet'!C62 -> 3.038998035 | D45: ='Data Sheet'!D17/'Data Sheet'!D62 -> 2.526506111 | E45: ='Data Sheet'!E17/'Data Sheet'!E62 -> 2.428707111 | F45: ='Data Sheet'!F17/'Data Sheet'!F62 -> 2.358874924 | G45: ='Data Sheet'!G17/'Data Sheet'!G62 -> 2.75220412 | H45: ='Data Sheet'!H17/'Data Sheet'!H62 -> 3.41517464 | I45: ='Data Sheet'!I17/'Data Sheet'!I62 -> 4.324922152 | J45: ='Data Sheet'!J17/'Data Sheet'!J62 -> 5.114929362 | K45: ='Data Sheet'!K17/'Data Sheet'!K62 -> 3.825523717
A46: Sales/Total Assets= Asset Turns | B46: ='Data Sheet'!B17/'Calculated Data'!B15 -> 0.9617190994 | C46: ='Data Sheet'!C17/'Calculated Data'!C15 -> 0.8419147662 | D46: ='Data Sheet'!D17/'Calculated Data'!D15 -> 0.7405664377 | E46: ='Data Sheet'!E17/'Calculated Data'!E15 -> 0.8147764612 | F46: ='Data Sheet'!F17/'Calculated Data'!F15 -> 0.966887544 | G46: ='Data Sheet'!G17/'Calculated Data'!G15 -> 1.041336797 | H46: ='Data Sheet'!H17/'Calculated Data'!H15 -> 1.294829529 | I46: ='Data Sheet'!I17/'Calculated Data'!I15 -> 1.272646845 | J46: ='Data Sheet'!J17/'Calculated Data'!J15 -> 1.283555308 | K46: ='Data Sheet'!K17/'Calculated Data'!K15 -> 1.161458403
A47: Net Margin*Asset Turns= RoA | B47: =B39*B46 -> 0.05464440137 | C47: =C39*C46 -> 0.05954389593 | D47: 0.05390909862 | E47: 0.06770885194 | F47: 0.09711582657 | G47: 0.118768351 | H47: 0.1559487543 | I47: 0.2463268982 | J47: 0.2699058387 | K47: 0.2698772338 | L47: Check back what is really driving RoA (Net Margins or Asset Turns, or both)
A48: Net Margin*Asset Turn*Fin Leverage= RoE | B48: =B39*B46*B19 -> 0.1270474045 | C48: 0.1622423254 | D48: 0.1618611164 | E48: 0.1838533499 | F48: 0.2216055587 | G48: 0.2592356474 | H48: 0.2849553923 | I48: 0.3941952773 | J48: 0.3684029058 | K48: 0.3424824668 | L48: Check back what is really driving RoE (Net Margins, Asset Turns, or Financial Leverage)
A49: RoCE | B49: ='Calculated Data'!B5/'Calculated Data'!B14 -> 0.1370383155 | C49: ='Calculated Data'!C5/'Calculated Data'!C14 -> 0.1459792477 | D49: ='Calculated Data'!D5/'Calculated Data'!D14 -> 0.1309994353 | E49: ='Calculated Data'!E5/'Calculated Data'!E14 -> 0.1426772264 | F49: ='Calculated Data'!F5/'Calculated Data'!F14 -> 0.1773947456 | G49: ='Calculated Data'!G5/'Calculated Data'!G14 -> 0.2137561034 | H49: ='Calculated Data'!H5/'Calculated Data'!H14 -> 0.3780268972 | I49: ='Calculated Data'!I5/'Calculated Data'!I14 -> 0.467781155 | J49: ='Calculated Data'!J5/'Calculated Data'!J14 -> 0.5056871052 | K49: ='Calculated Data'!K5/'Calculated Data'!K14 -> 0.4365963367
A50: EBIT Margin*Cap Turns*(1-Tax rate)= RoIC | B50: =B36*B44*(1-'Calculated Data'!B20) -> 0.1079618008 | C50: =C36*C44*(1-'Calculated Data'!C20) -> 0.1144993158 | D50: =D36*D44*(1-'Calculated Data'!D20) -> 0.1141247187 | E50: =E36*E44*(1-'Calculated Data'!E20) -> 0.1277766644 | F50: =F36*F44*(1-'Calculated Data'!F20) -> 0.1628099709 | G50: =G36*G44*(1-'Calculated Data'!G20) -> 0.1847249416 | H50: =H36*H44*(1-'Calculated Data'!H20) -> 0.2437008696 | I50: =I36*I44*(1-'Calculated Data'!I20) -> 0.3635551424 | J50: =J36*J44*(1-'Calculated Data'!J20) -> 0.3675570051 | K50: =K36*K44*(1-'Calculated Data'!K20) -> 0.3378907485 | L50: Check back what is really driving RoIC (Op Margins or Capital Turns, or both)
A52: Altman Z-Score | B52: ='Calculated Data'!B43 -> 2.233829748 | C52: ='Calculated Data'!C43 -> 2.02129302 | D52: ='Calculated Data'!D43 -> 1.773572258 | E52: ='Calculated Data'!E43 -> 1.95915782 | F52: ='Calculated Data'!F43 -> 2.216749816 | G52: ='Calculated Data'!G43 -> 2.637004615 | H52: ='Calculated Data'!H43 -> 3.88849567 | I52: ='Calculated Data'!I43 -> 5.320868485 | J52: ='Calculated Data'!J43 -> 9.580994396 | K52: ='Calculated Data'!K43 -> 8.370022042
A53: Dividend Payout | B53: ='Data Sheet'!B31/'Data Sheet'!B30 -> 0.1596180082 | C53: ='Data Sheet'!C31/'Data Sheet'!C30 -> 0.1339122486 | D53: ='Data Sheet'!D31/'Data Sheet'!D30 -> 0.1152182462 | E53: ='Data Sheet'!E31/'Data Sheet'!E30 -> 0.1202941176 | F53: ='Data Sheet'!F31/'Data Sheet'!F30 -> 0.1153618616 | G53: ='Data Sheet'!G31/'Data Sheet'!G30 -> 0.113642247 | H53: ='Data Sheet'!H31/'Data Sheet'!H30 -> 0.1306752297 | I53: ='Data Sheet'!I31/'Data Sheet'!I30 -> 0.1504190183 | J53: ='Data Sheet'!J31/'Data Sheet'!J30 -> 0.1704640806 | K53: ='Data Sheet'!K31/'Data Sheet'!K30 -> 0.1753817792
A54: Cash/Assets | B54: ='Data Sheet'!B69/'Data Sheet'!B61 -> 0.02776949456 | C54: ='Data Sheet'!C69/'Data Sheet'!C61 -> 0.01567517553 | D54: ='Data Sheet'!D69/'Data Sheet'!D61 -> 0.01710760621 | E54: ='Data Sheet'!E69/'Data Sheet'!E61 -> 0.02955292243 | F54: ='Data Sheet'!F69/'Data Sheet'!F61 -> 0.02208135437 | G54: ='Data Sheet'!G69/'Data Sheet'!G61 -> 0.01763231926 | H54: ='Data Sheet'!H69/'Data Sheet'!H61 -> 0.06430747402 | I54: ='Data Sheet'!I69/'Data Sheet'!I61 -> 0.06360390534 | J54: ='Data Sheet'!J69/'Data Sheet'!J61 -> 0.1191258068 | K54: ='Data Sheet'!K69/'Data Sheet'!K61 -> 0.03695088007
A55: EBIT/Invested Capital | B55: ='Calculated Data'!B5/'Calculated Data'!B13 -> 0.1422365534 | C55: ='Calculated Data'!C5/'Calculated Data'!C13 -> 0.1501016904 | D55: ='Calculated Data'!D5/'Calculated Data'!D13 -> 0.1337812766 | E55: ='Calculated Data'!E5/'Calculated Data'!E13 -> 0.1456653974 | F55: ='Calculated Data'!F5/'Calculated Data'!F13 -> 0.1810462287 | G55: ='Calculated Data'!G5/'Calculated Data'!G13 -> 0.2174570728 | H55: ='Calculated Data'!H5/'Calculated Data'!H13 -> 0.3843000333 | I55: ='Calculated Data'!I5/'Calculated Data'!I13 -> 0.5127358633 | J55: ='Calculated Data'!J5/'Calculated Data'!J13 -> 0.5409206412 | K55: ='Calculated Data'!K5/'Calculated Data'!K13 -> 0.4607792424 | L55: Check back the significant role of EBIT/Invested Capital
A56: EPA | B56: ='Calculated Data'!B24 -> -14.77522249 | C56: ='Calculated Data'!C24 -> -17.48267311 | D56: ='Calculated Data'!D24 -> -36.33433324 | E56: ='Calculated Data'!E24 -> -17.79170325 | F56: ='Calculated Data'!F24 -> 5.906487591 | G56: ='Calculated Data'!G24 -> 28.87684711 | H56: ='Calculated Data'!H24 -> 68.63824584 | I56: ='Calculated Data'!I24 -> 169.1843163 | J56: ='Calculated Data'!J24 -> 220.5712377 | K56: ='Calculated Data'!K24 -> 266.576976 | L56: Check back what is really driving EPA (Invested Capital or RoIC, or both)
A57: MktCap | B57: ='Calculated Data'!B26 -> 69.6764079 | C57: ='Calculated Data'!C26 -> 81.9638886 | D57: ='Calculated Data'!D26 -> 55.3291761 | E57: ='Calculated Data'!E26 -> 186.0168321 | F57: ='Calculated Data'!F26 -> 214.2851403 | G57: ='Calculated Data'!G26 -> 503.9997864 | H57: ='Calculated Data'!H26 -> 1353.114421 | I57: ='Calculated Data'!I26 -> 3505.485 | J57: ='Calculated Data'!J26 -> 11944.44666 | K57: ='Calculated Data'!K26 -> 13045.39731
A58: MktCap Added | C58: =C57-$B$57 -> 12.2874807 | D58: -14.3472318 | E58: 116.3404242 | F58: 144.6087324 | G58: 434.3233785 | H58: 1283.438013 | I58: 3435.808592 | J58: 11874.77025 | K58: 12975.7209
A59: Cumulative EPA | C59: =SUM($B$56:C56) -> -32.2578956 | D59: =SUM($B$56:D56) -> -68.59222884 | E59: =SUM($B$56:E56) -> -86.38393209 | F59: =SUM($B$56:F56) -> -80.4774445 | G59: =SUM($B$56:G56) -> -51.60059739 | H59: =SUM($B$56:H56) -> 17.03764845 | I59: =SUM($B$56:I56) -> 186.2219648 | J59: =SUM($B$56:J56) -> 406.7932024 | K59: =SUM($B$56:K56) -> 673.3701784
A60: Mcapadded/Cum EPA | C60: =C58/C59 -> -0.3809138964 | D60: 0.2091670156 | E60: -1.34678315 | F60: -1.796885243 | G60: -8.417022292 | H60: 75.32952783 | I60: 18.45007165 | J60: 29.19117178 | K60: 19.26981817
A63: Capex/Net Profits 10 yr | B63: =SUM('Calculated Data'!B$18:K$18)/SUM('Calculated Data'!B$8:K$8) -> 0.6947471121
A64: Capex/Net Profits 7 yr | B64: =SUM('Calculated Data'!E$18:K$18)/SUM('Calculated Data'!E$8:K$8) -> 0.6151751515
A65: Capex/Net Profits 5 yr | B65: =SUM('Calculated Data'!G$18:K$18)/SUM('Calculated Data'!G$8:K$8) -> 0.5876934739
A66: Capex/Net Profits 3 yr | B66: =SUM('Calculated Data'!I$18:K$18)/SUM('Calculated Data'!I$8:K$8) -> 0.5786488917
A67: Capex/Depreciation 10 yr | B67: =SUM('Calculated Data'!B$18:K$18)/SUM('Data Sheet'!B26:K26) -> 3.146265597

Sheet Data Sheet
A1: COMPANY NAME | B1: AJANTA PHARMA LTD | E1: =IF(B2<>B3, "A NEW VERSION OF THE WORKSHEET IS AVAILABLE", "") -> 
A2: LATEST VERSION | B2: 2.1 | E2: PLEASE DO NOT MAKE ANY CHANGES TO THIS SHEET
A3: CURRENT VERSION | B3: 2.1
A5: META
A6: Number of shares | B6: =IF(B9>0, B9/B8, 0) -> 8.800501602
A7: Face Value | B7: 2
A8: Current Price | B8: 1794.25
A9: Market Capitalization | B9: 15790.3
A15: PROFIT & LOSS
A16: Report Date | B16: 2007-03-31 | C16: 2008-03-31 | D16: 2009-03-31 | E16: 2010-03-31 | F16: 2011-03-31 | G16: 2012-03-31 | H16: 2013-03-31 | I16: 2014-03-31 | J16: 2015-03-31 | K16: 2016-03-31
A17: Sales | B17: 258.01 | C17: 309.37 | D17: 349.34 | E17: 409.14 | F17: 504.87 | G17: 677.4 | H17: 930.84 | I17: 1208.34 | J17: 1473.56 | K17: 1727.53
A18: Raw Material Cost | B18: 146.86 | C18: 154.18 | D18: 133.95 | E18: 132.65 | F18: 178.76 | G18: 250.67 | H18: 312.16 | I18: 339.5 | J18: 358.08 | K18: 463.1
A19: Change in Inventory | B19: 6.82 | C19: 14 | D19: 6.89 | E19: -7.13 | F19: -4.6 | G19: 20.72 | H19: 9.54 | I19: -6.02 | J19: -7.34 | K19: 49.27
A20: Power and Fuel | B20: 1.84 | C20: 2.22 | D20: 3.27 | E20: 4.77 | F20: 6.16 | G20: 7.83 | H20: 10.25 | I20: 11.2 | J20: 12.91 | K20: 15.49
A21: Other Mfr. Exp | B21: 5.54 | C21: 8.8 | D21: 11.97 | E21: 10.92 | F21: 10.11 | G21: 17.65 | H21: 29.25 | I21: 34.75 | J21: 55.72 | K21: 77.89
A22: Employee Cost | B22: 21.95 | C22: 30.45 | D22: 42.67 | E22: 47.79 | F22: 70.86 | G22: 93.84 | H22: 123.18 | I22: 156.97 | J22: 200.58 | K22: 256.99
A23: Selling and admin | B23: 43.6 | C23: 70.72 | D23: 94.96 | E23: 118.51 | F23: 115.29 | G23: 165.73 | H23: 207.01 | I23: 248.78 | J23: 284.95 | K23: 313.48
A24: Other Expenses | B24: 5.36 | C24: 5.65 | D24: 4.35 | E24: 8.81 | F24: 30.39 | G24: 30.37 | H24: 34.04 | I24: 42.37 | J24: 57.21 | K24: 69.13
A25: Other Income | B25: 0.82 | C25: 1.54 | D25: 2.5 | E25: 1.08 | F25: 10.46 | G25: 6.22 | H25: 5.6 | I25: 13.71 | J25: 16.8 | K25: 16.63
A26: Depreciation | B26: 8.74 | C26: 7.87 | D26: 14.2 | E26: 20.73 | F26: 24.75 | G26: 31.87 | H26: 34.17 | I26: 43.88 | J26: 51.64 | K26: 45.06
A27: Interest | B27: 12.38 | C27: 16.14 | D27: 23.55 | E27: 20.15 | F27: 18.02 | G27: 15.43 | H27: 19.13 | I27: 8.73 | J27: 5.92 | K27: 4.89
A28: Profit before tax | B28: 19.38 | C28: 28.88 | D28: 29.81 | E28: 38.76 | F28: 56.39 | G28: 90.95 | H28: 176.79 | I28: 329.85 | J28: 456.01 | K28: 547.4
A29: Tax | B29: 4.67 | C29: 6.85 | D29: 4.38 | E29: 4.76 | F29: 5.68 | G29: 13.69 | H29: 64.68 | I29: 95.97 | J29: 146.15 | K29: 145.99
A30: Net profit | B30: 14.66 | C30: 21.88 | D30: 25.43 | E30: 34 | F30: 50.71 | G30: 77.26 | H30: 112.11 | I30: 233.88 | J30: 309.86 | K30: 401.41
A31: Dividend Amount | B31: 2.34 | C31: 2.93 | D31: 2.93 | E31: 4.09 | F31: 5.85 | G31: 8.78 | H31: 14.65 | I31: 35.18 | J31: 52.82 | K31: 70.4
A40: Quarters
A41: Report Date | B41: 2014-06-30 | C41: 2014-09-30 | D41: 2014-12-31 | E41: 2015-03-31 | F41: 2015-06-30 | G41: 2015-09-30 | H41: 2015-12-31 | I41: 2016-03-31 | J41: 2016-06-30 | K41: 2016-09-30
A42: Sales | B42: 321.74 | C42: 371.87 | D42: 407.85 | E42: 372.09 | F42: 391.35 | G42: 441.7 | H42: 472.78 | I42: 425.73 | J42: 475.9 | K42: 515.82
A43: Expenses | B43: 224.82 | C43: 243.05 | D43: 263.09 | E43: 247.46 | F43: 268.83 | G43: 287.78 | H43: 309.3 | I43: 285.13 | J43: 309.33 | K43: 342.6
A44: Other Income | B44: 4.51 | C44: 4.41 | D44: 4.54 | E44: 4.98 | F44: 7.96 | G44: 6.16 | H44: 1.6 | I44: 4.98 | J44: 5.46 | K44: 6.66
A45: Depreciation | B45: 12.55 | C45: 12.72 | D45: 13.14 | E45: 13.23 | F45: 10.31 | G45: 10.97 | H45: 11.73 | I45: 12.05 | J45: 13 | K45: 13.99
A46: Interest | B46: 1.57 | C46: 1.48 | D46: 1.38 | E46: 1.49 | F46: 1.17 | G46: 1.07 | H46: 1.53 | I46: 1.12 | J46: 1.01 | K46: 0.77
A47: Profit before tax | B47: 87.31 | C47: 119.03 | D47: 134.78 | E47: 114.89 | F47: 119 | G47: 148.04 | H47: 151.82 | I47: 132.41 | J47: 158.02 | K47: 165.12
A48: Tax | B48: 27.65 | C48: 36.03 | D48: 41.72 | E48: 40.75 | F48: 32.99 | G48: 44.6 | H48: 40.52 | I48: 24.9 | J48: 38.47 | K48: 34.46
A49: Net profit | B49: 59.66 | C49: 83 | D49: 93.06 | E49: 74.14 | F49: 86.01 | G49: 103.44 | H49: 111.3 | I49: 107.51 | J49: 119.55 | K49: 130.66
A50: Operating Profit | B50: 96.92 | C50: 128.82 | D50: 144.76 | E50: 124.63 | F50: 122.52 | G50: 153.92 | H50: 163.48 | I50: 140.6 | J50: 166.57 | K50: 173.22
A55: BALANCE SHEET
A56: Report Date | B56: 2007-03-31 | C56: 2008-03-31 | D56: 2009-03-31 | E56: 2010-03-31 | F56: 2011-03-31 | G56: 2012-03-31 | H56: 2013-03-31 | I56: 2014-03-31 | J56: 2015-03-31 | K56: 2016-03-31
A57: Equity Share Capital | B57: 11.8 | C57: 11.8 | D57: 11.8 | E57: 11.8 | F57: 11.8 | G57: 11.8 | H57: 11.8 | I57: 17.67 | J57: 17.68 | K57: 17.69
A58: Reserves | B58: 103.59 | C58: 123.06 | D58: 145.31 | E58: 173.13 | F58: 217.03 | G58: 286.23 | H58: 381.63 | I58: 575.64 | J58: 823.41 | K58: 1154.37
A59: Borrowings | B59: 116.37 | C59: 173.54 | D59: 250.22 | E59: 227.96 | F59: 190.63 | G59: 199.64 | H59: 124.84 | I59: 130.49 | J59: 72.38 | K59: 92.93
A60: Other Liabilities | B60: 36.52 | C60: 59.06 | D60: 64.39 | E60: 89.26 | F60: 102.7 | G60: 152.84 | H60: 200.62 | I60: 225.67 | J60: 234.56 | K60: 222.39
A61: Total | B61: 268.28 | C61: 367.46 | D61: 471.72 | E61: 502.15 | F61: 522.16 | G61: 650.51 | H61: 718.89 | I61: 949.47 | J61: 1148.03 | K61: 1487.38
A62: Net Block | B62: 62 | C62: 101.8 | D62: 138.27 | E62: 168.46 | F62: 214.03 | G62: 246.13 | H62: 272.56 | I62: 279.39 | J62: 288.09 | K62: 451.58
A63: Capital Work in Progress | B63: 13.44 | C63: 23.88 | D63: 55.17 | E63: 46.99 | F63: 17.22 | G63: 2.51 | H63: 12.49 | I63: 93.55 | J63: 170.2 | K63: 239.8
A64: Investments | B64: 8.47 | C64: 8.47 | D64: 8.47 | E64: 8.47 | F64: 8.46 | G64: 8.47 | H64: 8.46 | I64: 63.46 | J64: 59.5 | K64: 66.39
A65: Other Assets | B65: 184.37 | C65: 233.31 | D65: 269.81 | E65: 278.23 | F65: 282.45 | G65: 393.4 | H65: 425.38 | I65: 513.07 | J65: 630.24 | K65: 729.61
A66: Total | B66: 268.28 | C66: 367.46 | D66: 471.72 | E66: 502.15 | F66: 522.16 | G66: 650.51 | H66: 718.89 | I66: 949.47 | J66: 1148.03 | K66: 1487.38
A67: Receivables | B67: 68.44 | C67: 86.83 | D67: 100.12 | E67: 96.73 | F67: 103.98 | G67: 141 | H67: 150.47 | I67: 202.22 | J67: 258.76 | K67: 372.35
A68: Inventory | B68: 70.84 | C68: 92.77 | D68: 103.89 | E68: 119.62 | F68: 113.12 | G68: 167.8 | H68: 147.6 | I68: 155.4 | J68: 159.03 | K68: 204.58
A69: Cash & Bank | B69: 7.45 | C69: 5.76 | D69: 8.07 | E69: 14.84 | F69: 11.53 | G69: 11.47 | H69: 46.23 | I69: 60.39 | J69: 136.76 | K69: 54.96
A70: No. of Equity Shares | B70: 11861800 | C70: 11861800 | D70: 11861800 | E70: 11861800 | F70: 11861800 | G70: 11861800 | H70: 23723600 | I70: 35400000 | J70: 88710000 | K70: 88767750
A71: New Bonus Shares | I71: 11716900
A72: Face value | B72: 10 | C72: 10 | D72: 10 | E72: 10 | F72: 10 | G72: 10 | H72: 5 | I72: 5 | J72: 2 | K72: 2
A80: CASH FLOW:
A81: Report Date | B81: 2007-03-31 | C81: 2008-03-31 | D81: 2009-03-31 | E81: 2010-03-31 | F81: 2011-03-31 | G81: 2012-03-31 | H81: 2013-03-31 | I81: 2014-03-31 | J81: 2015-03-31 | K81: 2016-03-31
A82: Cash from Operating Activity | B82: 21.13 | C82: 19.08 | D82: 34.59 | E82: 95.11 | F82: 95.37 | G82: 70.35 | H82: 234.29 | I82: 212.42 | J82: 279.42 | K82: 326.38
A83: Cash from Investing Activity | B83: -24.04 | C83: -59.14 | D83: -81.93 | E83: -42.67 | F83: -50.71 | G83: -53.07 | H83: -103.7 | I83: -187.79 | J83: -158.36 | K83: -209.29
A84: Cash from Financing Activity | B84: 3.64 | C84: 38.37 | D84: 49.65 | E84: -45.67 | F84: -55.89 | G84: -12.84 | H84: -104.49 | I84: -20.13 | J84: -105.19 | K84: -118.57
A85: Net Cash Flow | B85: 0.73 | C85: -1.69 | D85: 2.31 | E85: 6.77 | F85: -11.23 | G85: 4.44 | H85: 26.1 | I85: 4.5 | J85: 15.87 | K85: -1.48
A90: PRICE: | B90: 9.81 | C90: 11.54 | D90: 7.79 | E90: 26.19 | F90: 30.17 | G90: 70.96 | H90: 190.51 | I90: 396.1 | J90: 1346.46 | K90: 1469.61
A92: DERIVED:
A93: Adjusted Equity Shares in Cr | B93: =IF($B7>0,(B70*B72/$B7)+SUM(C71:$K71),0)/10000000 -> 7.10259 | C93: =IF($B7>0,(C70*C72/$B7)+SUM(D71:$K71),0)/10000000 -> 7.10259 | D93: =IF($B7>0,(D70*D72/$B7)+SUM(E71:$K71),0)/10000000 -> 7.10259 | E93: =IF($B7>0,(E70*E72/$B7)+SUM(F71:$K71),0)/10000000 -> 7.10259 | F93: =IF($B7>0,(F70*F72/$B7)+SUM(G71:$K71),0)/10000000 -> 7.10259 | G93: =IF($B7>0,(G70*G72/$B7)+SUM(H71:$K71),0)/10000000 -> 7.10259 | H93: =IF($B7>0,(H70*H72/$B7)+SUM(I71:$K71),0)/10000000 -> 7.10259 | I93: =IF($B7>0,(I70*I72/$B7)+SUM(J71:$K71),0)/10000000 -> 8.85 | J93: =IF($B7>0,(J70*J72/$B7)+SUM(K71:$K71),0)/10000000 -> 8.871 | K93: =IF($B7>0,(K70*K72/$B7),0)/10000000 -> 8.876775

Sheet Calculated Data
A1: ='Data Sheet'!B1 -> AJANTA PHARMA LTD
A3: =A1 -> AJANTA PHARMA LTD | B3: ='Data Sheet'!B16 -> 2007-03-31 | C3: ='Data Sheet'!C16 -> 2008-03-31 | D3: ='Data Sheet'!D16 -> 2009-03-31 | E3: ='Data Sheet'!E16 -> 2010-03-31 | F3: ='Data Sheet'!F16 -> 2011-03-31 | G3: ='Data Sheet'!G16 -> 2012-03-31 | H3: ='Data Sheet'!H16 -> 2013-03-31 | I3: ='Data Sheet'!I16 -> 2014-03-31 | J3: ='Data Sheet'!J16 -> 2015-03-31 | K3: ='Data Sheet'!K16 -> 2016-03-31
A4: Gross Profit | B4: ='Data Sheet'!B17-'Data Sheet'!B18 -> 111.15 | C4: ='Data Sheet'!C17-'Data Sheet'!C18 -> 155.19 | D4: ='Data Sheet'!D17-'Data Sheet'!D18 -> 215.39 | E4: ='Data Sheet'!E17-'Data Sheet'!E18 -> 276.49 | F4: ='Data Sheet'!F17-'Data Sheet'!F18 -> 326.11 | G4: ='Data Sheet'!G17-'Data Sheet'!G18 -> 426.73 | H4: ='Data Sheet'!H17-'Data Sheet'!H18 -> 618.68 | I4: ='Data Sheet'!I17-'Data Sheet'!I18 -> 868.84 | J4: ='Data Sheet'!J17-'Data Sheet'!J18 -> 1115.48 | K4: ='Data Sheet'!K17-'Data Sheet'!K18 -> 1264.43
A5: EBIT | B5: ='Data Sheet'!B28+'Data Sheet'!B27 -> 31.76 | C5: ='Data Sheet'!C28+'Data Sheet'!C27 -> 45.02 | D5: ='Data Sheet'!D28+'Data Sheet'!D27 -> 53.36 | E5: ='Data Sheet'!E28+'Data Sheet'!E27 -> 58.91 | F5: ='Data Sheet'!F28+'Data Sheet'!F27 -> 74.41 | G5: ='Data Sheet'!G28+'Data Sheet'!G27 -> 106.38 | H5: ='Data Sheet'!H28+'Data Sheet'!H27 -> 195.92 | I5: ='Data Sheet'!I28+'Data Sheet'!I27 -> 338.58 | J5: ='Data Sheet'!J28+'Data Sheet'!J27 -> 461.93 | K5: ='Data Sheet'!K28+'Data Sheet'!K27 -> 552.29
A6: EBITDA | B6: ='Calculated Data'!B5+'Data Sheet'!B26 -> 40.5 | C6: ='Calculated Data'!C5+'Data Sheet'!C26 -> 52.89 | D6: ='Calculated Data'!D5+'Data Sheet'!D26 -> 67.56 | E6: ='Calculated Data'!E5+'Data Sheet'!E26 -> 79.64 | F6: ='Calculated Data'!F5+'Data Sheet'!F26 -> 99.16 | G6: ='Calculated Data'!G5+'Data Sheet'!G26 -> 138.25 | H6: ='Calculated Data'!H5+'Data Sheet'!H26 -> 230.09 | I6: ='Calculated Data'!I5+'Data Sheet'!I26 -> 382.46 | J6: ='Calculated Data'!J5+'Data Sheet'!J26 -> 513.57 | K6: ='Calculated Data'!K5+'Data Sheet'!K26 -> 597.35
A7: Operating Profit (excl Other Income) | B7: =B6-'Data Sheet'!B25 -> 39.68 | C7: =C6-'Data Sheet'!C25 -> 51.35 | D7: =D6-'Data Sheet'!D25 -> 65.06 | E7: =E6-'Data Sheet'!E25 -> 78.56 | F7: =F6-'Data Sheet'!F25 -> 88.7 | G7: =G6-'Data Sheet'!G25 -> 132.03 | H7: =H6-'Data Sheet'!H25 -> 224.49 | I7: =I6-'Data Sheet'!I25 -> 368.75 | J7: =J6-'Data Sheet'!J25 -> 496.77 | K7: =K6-'Data Sheet'!K25 -> 580.72
A8: PAT | B8: ='Data Sheet'!B30 -> 14.66 | C8: ='Data Sheet'!C30 -> 21.88 | D8: ='Data Sheet'!D30 -> 25.43 | E8: ='Data Sheet'!E30 -> 34 | F8: ='Data Sheet'!F30 -> 50.71 | G8: ='Data Sheet'!G30 -> 77.26 | H8: ='Data Sheet'!H30 -> 112.11 | I8: ='Data Sheet'!I30 -> 233.88 | J8: ='Data Sheet'!J30 -> 309.86 | K8: ='Data Sheet'!K30 -> 401.41
A9: Dividend | B9: ='Data Sheet'!B31 -> 2.34 | C9: ='Data Sheet'!C31 -> 2.93 | D9: ='Data Sheet'!D31 -> 2.93 | E9: ='Data Sheet'!E31 -> 4.09 | F9: ='Data Sheet'!F31 -> 5.85 | G9: ='Data Sheet'!G31 -> 8.78 | H9: ='Data Sheet'!H31 -> 14.65 | I9: ='Data Sheet'!I31 -> 35.18 | J9: ='Data Sheet'!J31 -> 52.82 | K9: ='Data Sheet'!K31 -> 70.4
B10: =B3 -> 2007-03-31 | C10: =C3 -> 2008-03-31 | D10: 2009-03-31 | E10: 2010-03-31 | F10: 2011-03-31 | G10: 2012-03-31 | H10: 2013-03-31 | I10: 2014-03-31 | J10: 2015-03-31 | K10: 2016-03-31
A11: Networth | B11: ='Data Sheet'!B57+'Data Sheet'!B58 -> 115.39 | C11: ='Data Sheet'!C57+'Data Sheet'!C58 -> 134.86 | D11: ='Data Sheet'!D57+'Data Sheet'!D58 -> 157.11 | E11: ='Data Sheet'!E57+'Data Sheet'!E58 -> 184.93 | F11: ='Data Sheet'!F57+'Data Sheet'!F58 -> 228.83 | G11: ='Data Sheet'!G57+'Data Sheet'!G58 -> 298.03 | H11: ='Data Sheet'!H57+'Data Sheet'!H58 -> 393.43 | I11: ='Data Sheet'!I57+'Data Sheet'!I58 -> 593.31 | J11: ='Data Sheet'!J57+'Data Sheet'!J58 -> 841.09 | K11: ='Data Sheet'!K57+'Data Sheet'!K58 -> 1172.06
A12: Working Capital | B12: ='Data Sheet'!B65-'Data Sheet'!B60 -> 147.85 | C12: ='Data Sheet'!C65-'Data Sheet'!C60 -> 174.25 | D12: ='Data Sheet'!D65-'Data Sheet'!D60 -> 205.42 | E12: ='Data Sheet'!E65-'Data Sheet'!E60 -> 188.97 | F12: ='Data Sheet'!F65-'Data Sheet'!F60 -> 179.75 | G12: ='Data Sheet'!G65-'Data Sheet'!G60 -> 240.56 | H12: ='Data Sheet'!H65-'Data Sheet'!H60 -> 224.76 | I12: ='Data Sheet'!I65-'Data Sheet'!I60 -> 287.4 | J12: ='Data Sheet'!J65-'Data Sheet'!J60 -> 395.68 | K12: ='Data Sheet'!K65-'Data Sheet'!K60 -> 507.22
A13: Invested Capital | B13: ='Data Sheet'!B62+'Data Sheet'!B63+'Calculated Data'!B12 -> 223.29 | C13: ='Data Sheet'!C62+'Data Sheet'!C63+'Calculated Data'!C12 -> 299.93 | D13: ='Data Sheet'!D62+'Data Sheet'!D63+'Calculated Data'!D12 -> 398.86 | E13: ='Data Sheet'!E62+'Data Sheet'!E63+'Calculated Data'!E12 -> 404.42 | F13: ='Data Sheet'!F62+'Data Sheet'!F63+'Calculated Data'!F12 -> 411 | G13: ='Data Sheet'!G62+'Data Sheet'!G63+'Calculated Data'!G12 -> 489.2 | H13: ='Data Sheet'!H62+'Data Sheet'!H63+'Calculated Data'!H12 -> 509.81 | I13: ='Data Sheet'!I62+'Data Sheet'!I63+'Calculated Data'!I12 -> 660.34 | J13: ='Data Sheet'!J62+'Data Sheet'!J63+'Calculated Data'!J12 -> 853.97 | K13: ='Data Sheet'!K62+'Data Sheet'!K63+'Calculated Data'!K12 -> 1198.6
A14: Capital Employed | B14: =B11+'Data Sheet'!B59 -> 231.76 | C14: =C11+'Data Sheet'!C59 -> 308.4 | D14: =D11+'Data Sheet'!D59 -> 407.33 | E14: =E11+'Data Sheet'!E59 -> 412.89 | F14: =F11+'Data Sheet'!F59 -> 419.46 | G14: =G11+'Data Sheet'!G59 -> 497.67 | H14: =H11+'Data Sheet'!H59 -> 518.27 | I14: =I11+'Data Sheet'!I59 -> 723.8 | J14: =J11+'Data Sheet'!J59 -> 913.47 | K14: =K11+'Data Sheet'!K59 -> 1264.99
A15: Total Assets | B15: ='Data Sheet'!B61 -> 268.28 | C15: ='Data Sheet'!C61 -> 367.46 | D15: ='Data Sheet'!D61 -> 471.72 | E15: ='Data Sheet'!E61 -> 502.15 | F15: ='Data Sheet'!F61 -> 522.16 | G15: ='Data Sheet'!G61 -> 650.51 | H15: ='Data Sheet'!H61 -> 718.89 | I15: ='Data Sheet'!I61 -> 949.47 | J15: ='Data Sheet'!J61 -> 1148.03 | K15: ='Data Sheet'!K61 -> 1487.38
B16: =B3 -> 2007-03-31 | C16: =C3 -> 2008-03-31 | D16: 2009-03-31 | E16: 2010-03-31 | F16: 2011-03-31 | G16: 2012-03-31 | H16: 2013-03-31 | I16: 2014-03-31 | J16: 2015-03-31 | K16: 2016-03-31
A17: Operating Cash Flow | B17: ='Data Sheet'!B82 -> 21.13 | C17: ='Data Sheet'!C82 -> 19.08 | D17: ='Data Sheet'!D82 -> 34.59 | E17: ='Data Sheet'!E82 -> 95.11 | F17: ='Data Sheet'!F82 -> 95.37 | G17: ='Data Sheet'!G82 -> 70.35 | H17: ='Data Sheet'!H82 -> 234.29 | I17: ='Data Sheet'!I82 -> 212.42 | J17: ='Data Sheet'!J82 -> 279.42 | K17: ='Data Sheet'!K82 -> 326.38
A18: Capex | C18: =('Data Sheet'!C62-'Data Sheet'!B62)+('Data Sheet'!C63-'Data Sheet'!B63)+'Data Sheet'!C26 -> 58.11 | D18: =('Data Sheet'!D62-'Data Sheet'!C62)+('Data Sheet'!D63-'Data Sheet'!C63)+'Data Sheet'!D26 -> 81.96 | E18: =('Data Sheet'!E62-'Data Sheet'!D62)+('Data Sheet'!E63-'Data Sheet'!D63)+'Data Sheet'!E26 -> 42.74 | F18: =('Data Sheet'!F62-'Data Sheet'!E62)+('Data Sheet'!F63-'Data Sheet'!E63)+'Data Sheet'!F26 -> 40.55 | G18: =('Data Sheet'!G62-'Data Sheet'!F62)+('Data Sheet'!G63-'Data Sheet'!F63)+'Data Sheet'!G26 -> 49.26 | H18: =('Data Sheet'!H62-'Data Sheet'!G62)+('Data Sheet'!H63-'Data Sheet'!G63)+'Data Sheet'!H26 -> 70.58 | I18: =('Data Sheet'!I62-'Data Sheet'!H62)+('Data Sheet'!I63-'Data Sheet'!H63)+'Data Sheet'!I26 -> 131.77 | J18: =('Data Sheet'!J62-'Data Sheet'!I62)+('Data Sheet'!J63-'Data Sheet'!I63)+'Data Sheet'!J26 -> 136.99 | K18: =('Data Sheet'!K62-'Data Sheet'!J62)+('Data Sheet'!K63-'Data Sheet'!J63)+'Data Sheet'!K26 -> 278.15 | L18: CHECK? | M18: derived from BS
A19: Free Cash Flow | C19: =C17-C18 -> -39.03 | D19: =D17-D18 -> -47.37 | E19: 52.37 | F19: 54.82 | G19: 21.09 | H19: 163.71 | I19: 80.65 | J19: 142.43 | K19: 48.23
A20: Tax Rate | B20: ='Data Sheet'!B29/'Data Sheet'!B28 -> 0.2409700722 | C20: ='Data Sheet'!C29/'Data Sheet'!C28 -> 0.2371883657 | D20: ='Data Sheet'!D29/'Data Sheet'!D28 -> 0.1469305602 | E20: ='Data Sheet'!E29/'Data Sheet'!E28 -> 0.1228070175 | F20: ='Data Sheet'!F29/'Data Sheet'!F28 -> 0.1007270793 | G20: ='Data Sheet'!G29/'Data Sheet'!G28 -> 0.150522265 | H20: ='Data Sheet'!H29/'Data Sheet'!H28 -> 0.3658577974 | I20: ='Data Sheet'!I29/'Data Sheet'!I28 -> 0.290950432 | J20: ='Data Sheet'!J29/'Data Sheet'!J28 -> 0.3204973575 | K20: ='Data Sheet'!K29/'Data Sheet'!K28 -> 0.2666971136
A21: NOPLAT | B21: =B5*(1-B20) -> 24.10679051 | C21: 34.34177978 | D21: 45.51978531 | E21: 51.6754386 | F21: 66.91489803 | G21: 90.36744145 | H21: 124.2411403 | I21: 240.0700027 | J21: 313.8826556 | K21: 404.9958511
A22: RoIC | B22: =(B5/B13)*(1-B20) -> 0.1079618008 | C22: =(C5/C13)*(1-C20) -> 0.1144993158 | D22: 0.1141247187 | E22: 0.1277766644 | F22: 0.1628099709 | G22: 0.1847249416 | H22: 0.2437008696 | I22: 0.3635551424 | J22: 0.3675570051 | K22: 0.3378907485
A23: WACC | B23: =(B50*B54)+(B51*B55)+(B52*B56) -> 0.1741323525 | C23: 0.1727884936 | D23: 0.2052201739 | E23: 0.1717697983 | F23: 0.1484389548 | G23: 0.1256962272 | H23: 0.1090659157 | I23: 0.1073472551 | J23: 0.1092677939 | K23: 0.1154837937
A24: EPA (Economic Profit Added) | B24: =B13*(B22-B23) -> -14.77522249 | C24: =C13*(C22-C23) -> -17.48267311 | D24: -36.33433324 | E24: -17.79170325 | F24: 5.906487591 | G24: 28.87684711 | H24: 68.63824584 | I24: 169.1843163 | J24: 220.5712377 | K24: 266.576976
B25: =B3 -> 2007-03-31 | C25: =C3 -> 2008-03-31 | D25: 2009-03-31 | E25: 2010-03-31 | F25: 2011-03-31 | G25: 2012-03-31 | H25: 2013-03-31 | I25: 2014-03-31 | J25: 2015-03-31 | K25: 2016-03-31 | L25: CURRENT
A26: MktCap | B26: ='Data Sheet'!B90*'Data Sheet'!B93 -> 69.6764079 | C26: ='Data Sheet'!C90*'Data Sheet'!C93 -> 81.9638886 | D26: ='Data Sheet'!D90*'Data Sheet'!D93 -> 55.3291761 | E26: ='Data Sheet'!E90*'Data Sheet'!E93 -> 186.0168321 | F26: ='Data Sheet'!F90*'Data Sheet'!F93 -> 214.2851403 | G26: ='Data Sheet'!G90*'Data Sheet'!G93 -> 503.9997864 | H26: ='Data Sheet'!H90*'Data Sheet'!H93 -> 1353.114421 | I26: ='Data Sheet'!I90*'Data Sheet'!I93 -> 3505.485 | J26: ='Data Sheet'!J90*'Data Sheet'!J93 -> 11944.44666 | K26: ='Data Sheet'!K90*'Data Sheet'!K93 -> 13045.39731 | L26: ='Data Sheet'!B9 -> 15790.3
A27: MktCap+Dividend | B27: =B26+'Data Sheet'!B31 -> 72.0164079 | C27: =C26+'Data Sheet'!C31 -> 84.8938886 | D27: =D26+'Data Sheet'!D31 -> 58.2591761 | E27: =E26+'Data Sheet'!E31 -> 190.1068321 | F27: =F26+'Data Sheet'!F31 -> 220.1351403 | G27: =G26+'Data Sheet'!G31 -> 512.7797864 | H27: =H26+'Data Sheet'!H31 -> 1367.764421 | I27: =I26+'Data Sheet'!I31 -> 3540.665 | J27: =J26+'Data Sheet'!J31 -> 11997.26666 | K27: =K26+'Data Sheet'!K31 -> 13115.79731
A28: Retained Profit | B28: ='Data Sheet'!B30-'Data Sheet'!B31 -> 12.32 | C28: ='Data Sheet'!C30-'Data Sheet'!C31 -> 18.95 | D28: ='Data Sheet'!D30-'Data Sheet'!D31 -> 22.5 | E28: ='Data Sheet'!E30-'Data Sheet'!E31 -> 29.91 | F28: ='Data Sheet'!F30-'Data Sheet'!F31 -> 44.86 | G28: ='Data Sheet'!G30-'Data Sheet'!G31 -> 68.48 | H28: ='Data Sheet'!H30-'Data Sheet'!H31 -> 97.46 | I28: ='Data Sheet'!I30-'Data Sheet'!I31 -> 198.7 | J28: ='Data Sheet'!J30-'Data Sheet'!J31 -> 257.04 | K28: ='Data Sheet'!K30-'Data Sheet'!K31 -> 331.01
A29: EV | B29: =B26+'Data Sheet'!B59-'Data Sheet'!B69 -> 178.5964079 | C29: =C26+'Data Sheet'!C59-'Data Sheet'!C69 -> 249.7438886 | D29: =D26+'Data Sheet'!D59-'Data Sheet'!D69 -> 297.4791761 | E29: =E26+'Data Sheet'!E59-'Data Sheet'!E69 -> 399.1368321 | F29: =F26+'Data Sheet'!F59-'Data Sheet'!F69 -> 393.3851403 | G29: =G26+'Data Sheet'!G59-'Data Sheet'!G69 -> 692.1697864 | H29: =H26+'Data Sheet'!H59-'Data Sheet'!H69 -> 1431.724421 | I29: =I26+'Data Sheet'!I59-'Data Sheet'!I69 -> 3575.585 | J29: =J26+'Data Sheet'!J59-'Data Sheet'!J69 -> 11880.06666 | K29: =K26+'Data Sheet'!K59-'Data Sheet'!K69 -> 13083.36731
B30: =B3 -> 2007-03-31 | C30: =C3 -> 2008-03-31 | D30: 2009-03-31 | E30: 2010-03-31 | F30: 2011-03-31 | G30: 2012-03-31 | H30: 2013-03-31 | I30: 2014-03-31 | J30: 2015-03-31 | K30: 2016-03-31
A31: Price/Earnings | B31: =B26/'Data Sheet'!B30 -> 4.75282455 | C31: =C26/'Data Sheet'!C30 -> 3.746064378 | D31: =D26/'Data Sheet'!D30 -> 2.175744243 | E31: =E26/'Data Sheet'!E30 -> 5.471083297 | F31: =F26/'Data Sheet'!F30 -> 4.225697896 | G31: =G26/'Data Sheet'!G30 -> 6.523424623 | H31: =H26/'Data Sheet'!H30 -> 12.06952476 | I31: =I26/'Data Sheet'!I30 -> 14.98839148 | J31: =J26/'Data Sheet'!J30 -> 38.54788182 | K31: =K26/'Data Sheet'!K30 -> 32.49893453
A32: Price/Book | B32: =B26/B11 -> 0.6038340229 | C32: 0.6077701958 | D32: 0.3521683922 | E32: 1.005876992 | F32: 0.9364381432 | G32: 1.691104206 | H32: 3.439276163 | I32: 5.908353137 | J32: 14.20115167 | K32: 11.13031526
A33: Price/CashFlow | B33: =B26/B17 -> 3.297511022 | C33: 4.295801289 | D33: 1.59957144 | E33: 1.955807298 | F33: 2.246882042 | G33: 7.164176068 | H33: 5.775382735 | I33: 16.50261275 | J33: 42.74728602 | K33: 39.9699654
A34: Price/Sales | B34: =B26/'Data Sheet'!B17 -> 0.2700531293 | C34: =C26/'Data Sheet'!C17 -> 0.2649380632 | D34: =D26/'Data Sheet'!D17 -> 0.1583820235 | E34: =E26/'Data Sheet'!E17 -> 0.4546532534 | F34: =F26/'Data Sheet'!F17 -> 0.4244362713 | G34: =G26/'Data Sheet'!G17 -> 0.7440209424 | H34: =H26/'Data Sheet'!H17 -> 1.45364877 | I34: =I26/'Data Sheet'!I17 -> 2.901075029 | J34: =J26/'Data Sheet'!J17 -> 8.10584344 | K34: =K26/'Data Sheet'!K17 -> 7.551473669
A35: EV/EBITDA | B35: =B29/B6 -> 4.409787849 | C35: 4.721949113 | D35: 4.403184963 | E35: 5.011763336 | F35: 3.967175679 | G35: 5.006653066 | H35: 6.222453913 | I35: 9.348912305 | J35: 23.1323221 | K35: 21.90234755
A36: Dividend Yield | B36: ='Data Sheet'!B31/'Calculated Data'!B26 -> 0.03358382084 | C36: ='Data Sheet'!C31/'Calculated Data'!C26 -> 0.03574744988 | D36: ='Data Sheet'!D31/'Calculated Data'!D26 -> 0.05295578584 | E36: ='Data Sheet'!E31/'Calculated Data'!E26 -> 0.02198725757 | F36: ='Data Sheet'!F31/'Calculated Data'!F26 -> 0.02730007313 | G36: ='Data Sheet'!G31/'Calculated Data'!G26 -> 0.0174206423 | H36: ='Data Sheet'!H31/'Calculated Data'!H26 -> 0.01082687449 | I36: ='Data Sheet'!I31/'Calculated Data'!I26 -> 0.01003570119 | J36: ='Data Sheet'!J31/'Calculated Data'!J26 -> 0.004422138715 | K36: ='Data Sheet'!K31/'Calculated Data'!K26 -> 0.005396539357
B37: =B3 -> 2007-03-31 | C37: =C3 -> 2008-03-31 | D37: 2009-03-31 | E37: 2010-03-31 | F37: 2011-03-31 | G37: 2012-03-31 | H37: 2013-03-31 | I37: 2014-03-31 | J37: 2015-03-31 | K37: 2016-03-31 | L37: Z-Weights
A38: Working Capital/Total Assets | B38: =B12/B15 -> 0.5511033249 | C38: 0.4742012736 | D38: 0.4354701942 | E38: 0.3763218162 | F38: 0.3442431439 | G38: 0.3698021552 | H38: 0.3126486667 | I38: 0.3026951878 | J38: 0.3446599828 | K38: 0.3410157458 | L38: 1.2
A39: Retained Profits/Total Assets | B39: =B28/B15 -> 0.04592217087 | C39: 0.05157023894 | D39: 0.04769778682 | E39: 0.05956387534 | F39: 0.08591236403 | G39: 0.1052712487 | H39: 0.135570115 | I39: 0.209274648 | J39: 0.2238965881 | K39: 0.2225456844 | L39: 1.4
A40: EBIT/Total Assets | B40: =B5/B15 -> 0.1183837781 | C40: 0.1225167365 | D40: 0.1131179513 | E40: 0.1173155432 | F40: 0.1425042133 | G40: 0.1635332278 | H40: 0.2725312635 | I40: 0.3565989447 | J40: 0.4023675339 | K40: 0.37131735 | L40: 3.3
A41: Market Cap/Total Liabilities | B41: =B26/B15 -> 0.2597152523 | C41: =C26/C15 -> 0.2230552675 | D41: 0.117292411 | E41: 0.3704407689 | F41: 0.410382144 | G41: 0.7747763853 | H41: 1.882227352 | I41: 3.692043982 | J41: 10.40429837 | K41: 8.770722551 | L41: 0.6
A42: Sales/Total Assets | B42: ='Data Sheet'!B17/'Calculated Data'!B15 -> 0.9617190994 | C42: ='Data Sheet'!C17/'Calculated Data'!C15 -> 0.8419147662 | D42: ='Data Sheet'!D17/'Calculated Data'!D15 -> 0.7405664377 | E42: ='Data Sheet'!E17/'Calculated Data'!E15 -> 0.8147764612 | F42: ='Data Sheet'!F17/'Calculated Data'!F15 -> 0.966887544 | G42: ='Data Sheet'!G17/'Calculated Data'!G15 -> 1.041336797 | H42: ='Data Sheet'!H17/'Calculated Data'!H15 -> 1.294829529 | I42: ='Data Sheet'!I17/'Calculated Data'!I15 -> 1.272646845 | J42: ='Data Sheet'!J17/'Calculated Data'!J15 -> 1.283555308 | K42: ='Data Sheet'!K17/'Calculated Data'!K15 -> 1.161458403 | L42: 1
A43: Altman Z-Score | B43: =$L$38*B38+$L$39*B39+$L$40*B40+$L$41*B41+$L$42*B42 -> 2.233829748 | C43: =$L$38*C38+$L$39*C39+$L$40*C40+$L$41*C41+$L$42*C42 -> 2.02129302 | D43: 1.773572258 | E43: 1.95915782 | F43: 2.216749816 | G43: 2.637004615 | H43: 3.88849567 | I43: 5.320868485 | J43: 9.580994396 | K43: 8.370022042
A44: Z > 2.99 -“Safe” Zones
A45: 1.81 < Z < 2.99 -“Grey” Zones
A46: Z < 1.81 -“Distress” Zones
A48: Risk Free rate | B48: 8 | C48: 8 | D48: 8 | E48: 8 | F48: 8 | G48: 8 | H48: 8 | I48: 8 | J48: 8 | K48: 8
A49: Risk Premium | B49: =((5/(Customization!B24))^2)+((5/B43)^2) -> 8.808596261 | C49: =((5/(Customization!C24))^2)+((5/C43)^2) -> 9.332201773 | D49: =((5/(Customization!D24))^2)+((5/D43)^2) -> 12.81727933 | E49: =((5/(Customization!E24))^2)+((5/E43)^2) -> 9.438208255 | F49: =((5/(Customization!F24))^2)+((5/F43)^2) -> 6.55370498 | G49: =((5/(Customization!G24))^2)+((5/G43)^2) -> 4.121119047 | H49: =((5/(Customization!H24))^2)+((5/H43)^2) -> 1.891744058 | I49: =((5/(Customization!I24))^2)+((5/I43)^2) -> 0.8996495544 | J49: =((5/(Customization!J24))^2)+((5/J43)^2) -> 0.2764507573 | K49: =((5/(Customization!K24))^2)+((5/K43)^2) -> 0.3588107597
A50: E | B50: =(B48+B49+5)/100 -> 0.2180859626 | C50: 0.2233220177 | D50: 0.2581727933 | E50: 0.2243820825 | F50: 0.1955370498 | G50: 0.1712111905 | H50: 0.1489174406 | I50: 0.1389964955 | J50: 0.1327645076 | K50: 0.1335881076
A51: D | B51: =(B48+B49)/100 -> 0.1680859626 | C51: 0.1733220177 | D51: 0.2081727933 | E51: 0.1743820825 | F51: 0.1455370498 | G51: 0.1212111905 | H51: 0.09891744058 | I51: 0.08899649554 | J51: 0.08276450757 | K51: 0.0835881076
A52: F | B52: =B50/4 -> 0.05452149065 | C52: 0.05583050443 | D52: 0.06454319832 | E52: 0.05609552064 | F52: 0.04888426245 | G52: 0.04280279762 | H52: 0.03722936014 | I52: 0.03474912389 | J52: 0.03319112689 | K52: 0.0333970269
A54: E | B54: =SUM('Data Sheet'!B57:B58)/'Data Sheet'!B61 -> 0.4301103325 | C54: =SUM('Data Sheet'!C57:C58)/'Data Sheet'!C61 -> 0.3670059326 | D54: =SUM('Data Sheet'!D57:D58)/'Data Sheet'!D61 -> 0.3330577461 | E54: =SUM('Data Sheet'!E57:E58)/'Data Sheet'!E61 -> 0.3682764114 | F54: =SUM('Data Sheet'!F57:F58)/'Data Sheet'!F61 -> 0.4382373219 | G54: =SUM('Data Sheet'!G57:G58)/'Data Sheet'!G61 -> 0.4581482222 | H54: =SUM('Data Sheet'!H57:H58)/'Data Sheet'!H61 -> 0.5472742701 | I54: =SUM('Data Sheet'!I57:I58)/'Data Sheet'!I61 -> 0.6248854624 | J54: =SUM('Data Sheet'!J57:J58)/'Data Sheet'!J61 -> 0.7326376488 | K54: =SUM('Data Sheet'!K57:K58)/'Data Sheet'!K61 -> 0.7880030658
A55: D | B55: ='Data Sheet'!B59/'Data Sheet'!B61 -> 0.4337632324 | C55: ='Data Sheet'!C59/'Data Sheet'!C61 -> 0.4722690905 | D55: ='Data Sheet'!D59/'Data Sheet'!D61 -> 0.5304417875 | E55: ='Data Sheet'!E59/'Data Sheet'!E61 -> 0.4539679379 | F55: ='Data Sheet'!F59/'Data Sheet'!F61 -> 0.3650796691 | G55: ='Data Sheet'!G59/'Data Sheet'!G61 -> 0.3068976649 | H55: ='Data Sheet'!H59/'Data Sheet'!H61 -> 0.1736566095 | I55: ='Data Sheet'!I59/'Data Sheet'!I61 -> 0.1374345688 | J55: ='Data Sheet'!J59/'Data Sheet'!J61 -> 0.06304713291 | K55: ='Data Sheet'!K59/'Data Sheet'!K61 -> 0.0624789899
A56: F | B56: ='Data Sheet'!B60/'Data Sheet'!B61 -> 0.1361264351 | C56: ='Data Sheet'!C60/'Data Sheet'!C61 -> 0.1607249769 | D56: ='Data Sheet'!D60/'Data Sheet'!D61 -> 0.1365004664 | E56: ='Data Sheet'!E60/'Data Sheet'!E61 -> 0.1777556507 | F56: ='Data Sheet'!F60/'Data Sheet'!F61 -> 0.196683009 | G56: ='Data Sheet'!G60/'Data Sheet'!G61 -> 0.2349541129 | H56: ='Data Sheet'!H60/'Data Sheet'!H61 -> 0.2790691204 | I56: ='Data Sheet'!I60/'Data Sheet'!I61 -> 0.2376799688 | J56: ='Data Sheet'!J60/'Data Sheet'!J61 -> 0.2043152182 | K56: ='Data Sheet'!K60/'Data Sheet'!K61 -> 0.1495179443
A58: PE | B58: =(1/B50*B54)+(1/B51*B55)+(1/B52*B56) -> 7.049557269 | C58: 7.247002824 | D58: 5.95301149 | E58: 7.413389092 | F58: 8.773140548 | G58: 10.69707297 | H58: 12.92653106 | I58: 12.87984544 | J58: 12.43580797 | K58: 11.12319796

Sheet Sheet1
